Workbook

Sheet 대덕구주민수현황
A1: 대전광역시 대덕구 주민등록 인구현황
A2: [ 2026. 7. 31. 기준 ]
A3: 동 별 | B3: 주 민 수 및 세 대 수 | I3: 10대 이하 (0세 ~ 19세) | L3: 20대 | O3: 30대 | R3: 40대 | U3: 50대 | X3: 60대 | AA3: 70대 이상 | AD3: 65세 이상
B4: 계 | C4: 전월계 | D4: 증감 | E4: 증감비 (%) | F4: 남 | G4: 여 | H4: 세대수 | I4: 계 | J4: 전월계 | K4: 증감 | L4: 계 | M4: 전월계 | N4: 증감 | O4: 계 | P4: 전월계 | Q4: 증감 | R4: 계 | S4: 전월계 | T4: 증감 | U4: 계 | V4: 전월계 | W4: 증감 | X4: 계 | Y4: 전월계 | Z4: 증감 | AA4: 계 | AB4: 전월계 | AC4: 증감 | AD4: 계 | AE4: 전월계 | AF4: 증감
A5: 계 | B5: =SUM(B6:B17) -> 163823 | C5: =SUM(C6:C17) -> 164047 | D5: =SUM(D6:D17) -> -224 | E5: =(B5-C5)/C5*100 -> -0.1365462337 | F5: =SUM(F6:F17) -> 83086 | G5: =SUM(G6:G17) -> 80737 | H5: =SUM(H6:H17) -> 81157 | I5: =SUM(I6:I17) -> 20374 | J5: =SUM(J6:J17) -> 20434 | K5: =SUM(K6:K17) -> -60 | L5: 18122 | M5: =SUM(M6:M17) -> 18221 | N5: -99 | O5: 19318 | P5: =SUM(P6:P17) -> 19341 | Q5: -23 | R5: =SUM(R6:R17) -> 20806 | S5: =SUM(S6:S17) -> 20811 | T5: -5 | U5: 31123 | V5: =SUM(V6:V17) -> 31262 | W5: -139 | X5: 29861 | Y5: =SUM(Y6:Y17) -> 29843 | Z5: 18 | AA5: 24219 | AB5: =SUM(AB6:AB17) -> 24135 | AC5: 84 | AD5: =SUM(AD6:AD17) -> 39102 | AE5: =SUM(AE6:AE17) -> 38941 | AF5: 161
A6: 오 정 동 | B6: 12991 | C6: 13000 | D6: =B6-C6 -> -9 | E6: -0.06923076923 | F6: 6781 | G6: 6210 | H6: 7426 | I6: 1196 | J6: 1208 | K6: =I6-J6 -> -12 | L6: 1978 | M6: 1978 | N6: =L6-M6 -> 0 | O6: 1277 | P6: 1274 | Q6: =O6-P6 -> 3 | R6: 1340 | S6: 1339 | T6: =R6-S6 -> 1 | U6: 2137 | V6: 2140 | W6: =U6-V6 -> -3 | X6: 2678 | Y6: 2681 | Z6: =X6-Y6 -> -3 | AA6: 2385 | AB6: 2380 | AC6: =AA6-AB6 -> 5 | AD6: 3815 | AE6: 3802 | AF6: =AD6-AE6 -> 13
A7: 대 화 동 | B7: 5177 | C7: 5206 | D7: -29 | E7: -0.5570495582 | F7: 2705 | G7: 2472 | H7: 2780 | I7: 451 | J7: 457 | K7: -6 | L7: 435 | M7: 435 | N7: 0 | O7: 548 | P7: 555 | Q7: -7 | R7: 698 | S7: 702 | T7: -4 | U7: 958 | V7: 970 | W7: =U7-V7 -> -12 | X7: 1025 | Y7: 1025 | Z7: 0 | AA7: 1062 | AB7: 1062 | AC7: 0 | AD7: 1616 | AE7: 1616 | AF7: 0
A8: 회 덕 동 | B8: 11985 | C8: 11989 | D8: -4 | E8: -0.03336391692 | F8: 6093 | G8: 5892 | H8: 5898 | I8: 1241 | J8: 1242 | K8: -1 | L8: 1058 | M8: 1068 | N8: -10 | O8: 1421 | P8: 1434 | Q8: -13 | R8: 1354 | S8: 1339 | T8: 15 | U8: 2203 | V8: 2217 | W8: -14 | X8: 2483 | Y8: 2471 | Z8: 12 | AA8: 2225 | AB8: 2218 | AC8: 7 | AD8: 3527 | AE8: 3515 | AF8: 12
A9: 비 래 동 | B9: 14155 | C9: 14192 | D9: -37 | E9: -0.2607102593 | F9: 6930 | G9: 7225 | H9: 6813 | I9: 1520 | J9: 1534 | K9: -14 | L9: 1566 | M9: 1573 | N9: -7 | O9: 1275 | P9: 1288 | Q9: -13 | R9: 1610 | S9: 1613 | T9: -3 | U9: 2925 | V9: 2940 | W9: =U9-V9 -> -15 | X9: 2819 | Y9: 2817 | Z9: 2 | AA9: 2440 | AB9: 2427 | AC9: 13 | AD9: 3878 | AE9: 3858 | AF9: 20
A10: 송 촌 동 | B10: 26632 | C10: 26650 | D10: -18 | E10: -0.06754221388 | F10: 13208 | G10: 13424 | H10: 11083 | I10: 4529 | J10: 4546 | K10: -17 | L10: 3100 | M10: 3126 | N10: -26 | O10: 2979 | P10: 2961 | Q10: 18 | R10: 3737 | S10: 3738 | T10: -1 | U10: 5765 | V10: 5776 | W10: -11 | X10: 4088 | Y10: 4087 | Z10: 1 | AA10: 2434 | AB10: 2416 | AC10: 18 | AD10: 4245 | AE10: 4217 | AF10: 28
A11: 중 리 동 | B11: 17411 | C11: 17394 | D11: 17 | E11: 0.0977348511 | F11: 9163 | G11: 8248 | H11: 10256 | I11: 1558 | J11: 1549 | K11: 9 | L11: 2188 | M11: 2196 | N11: -8 | O11: 2001 | P11: 1986 | Q11: 15 | R11: 2099 | S11: 2098 | T11: 1 | U11: 3366 | V11: 3376 | W11: -10 | X11: 3424 | Y11: 3425 | Z11: -1 | AA11: 2775 | AB11: 2764 | AC11: 11 | AD11: 4525 | AE11: 4511 | AF11: 14
A12: 법 1 동 | B12: 12002 | C12: 12018 | D12: -16 | E12: -0.1331336329 | F12: 5607 | G12: 6395 | H12: 5963 | I12: 1427 | J12: 1428 | K12: -1 | L12: 1105 | M12: 1113 | N12: -8 | O12: 1416 | P12: 1421 | Q12: -5 | R12: 1424 | S12: 1427 | T12: -3 | U12: 2151 | V12: 2162 | W12: -11 | X12: 2338 | Y12: 2336 | Z12: 2 | AA12: 2141 | AB12: 2131 | AC12: 10 | AD12: 3317 | AE12: 3300 | AF12: 17
A13: 법 2 동 | B13: 14149 | C13: 14178 | D13: -29 | E13: -0.2045422486 | F13: 6828 | G13: 7321 | H13: 6682 | I13: 1627 | J13: 1626 | K13: 1 | L13: 1365 | M13: 1393 | N13: -28 | O13: 1283 | P13: 1276 | Q13: 7 | R13: 1524 | S13: 1532 | T13: -8 | U13: 2771 | V13: 2779 | W13: -8 | X13: 3082 | Y13: 3093 | Z13: -11 | AA13: 2497 | AB13: 2479 | AC13: 18 | AD13: 4090 | AE13: 4066 | AF13: 24
A14: 신 탄 진 | B14: 15802 | C14: 15844 | D14: -42 | E14: -0.2650845746 | F14: 8108 | G14: 7694 | H14: 7860 | I14: 1942 | J14: 1933 | K14: 9 | L14: 1647 | M14: 1652 | N14: -5 | O14: 2399 | P14: 2409 | Q14: -10 | R14: 1936 | S14: 1941 | T14: -5 | U14: 2826 | V14: 2850 | W14: -24 | X14: 2737 | Y14: 2733 | Z14: 4 | AA14: 2315 | AB14: 2326 | AC14: -11 | AD14: 3623 | AE14: 3623 | AF14: 0
A15: 석 봉 동 | B15: 15589 | C15: 15622 | D15: -33 | E15: -0.2112405582 | F15: 7972 | G15: 7617 | H15: 6661 | I15: 3055 | J15: 3073 | K15: -18 | L15: 1402 | M15: 1407 | N15: -5 | O15: 2329 | P15: 2334 | Q15: -5 | R15: 2776 | S15: 2771 | T15: 5 | U15: 2505 | V15: 2520 | W15: -15 | X15: 2142 | Y15: 2139 | Z15: 3 | AA15: 1380 | AB15: 1378 | AC15: 2 | AD15: 2425 | AE15: 2407 | AF15: 18
A16: 덕 암 동 | B16: 12196 | C16: 12203 | D16: -7 | E16: -0.05736294354 | F16: 6512 | G16: 5684 | H16: 6594 | I16: 1174 | J16: 1173 | K16: 1 | L16: 1527 | M16: 1535 | N16: -8 | O16: 1544 | P16: 1552 | Q16: -8 | R16: 1404 | S16: 1400 | T16: 4 | U16: 2433 | V16: 2444 | W16: -11 | X16: 2149 | Y16: 2141 | Z16: 8 | AA16: 1965 | AB16: 1958 | AC16: 7 | AD16: 3019 | AE16: 3009 | AF16: 10
A17: 목 상 동 | B17: 5734 | C17: 5751 | D17: -17 | E17: -0.2956007651 | F17: 3179 | G17: 2555 | H17: 3141 | I17: 654 | J17: 665 | K17: -11 | L17: 751 | M17: 745 | N17: 6 | O17: 846 | P17: 851 | Q17: -5 | R17: 904 | S17: 911 | T17: -7 | U17: 1083 | V17: 1088 | W17: -5 | X17: 896 | Y17: 895 | Z17: 1 | AA17: 600 | AB17: 596 | AC17: 4 | AD17: 1022 | AE17: 1017 | AF17: 5

Sheet 기관별연령별인구통계(2026.7.)
B2: 연령별(만)인구현황(기관별)
B4: 행정기관 : 대전광역시 대덕구 | M4: 출력일자 : | N4: 2026.08.01
B5: 통계년월 : 2026년 07월 현재
B6: 연령 | D6: 대덕구 | G6: 오정동 | J6: 대화동 | M6: 회덕동 | P6: 비래동 | S6: 송촌동 | V6: 중리동 | Y6: 신탄진동 | AB6: 석봉동 | AE6: 덕암동 | AH6: 목상동 | AK6: 법1동 | AN6: 법2동
D7: 인구수 | E7: 구성비 | F7: 성비 | G7: 인구수 | H7: 구성비 | I7: 성비 | J7: 인구수 | K7: 구성비 | L7: 성비 | M7: 인구수 | N7: 구성비 | O7: 성비 | P7: 인구수 | Q7: 구성비 | R7: 성비 | S7: 인구수 | T7: 구성비 | U7: 성비 | V7: 인구수 | W7: 구성비 | X7: 성비 | Y7: 인구수 | Z7: 구성비 | AA7: 성비 | AB7: 인구수 | AC7: 구성비 | AD7: 성비 | AE7: 인구수 | AF7: 구성비 | AG7: 성비 | AH7: 인구수 | AI7: 구성비 | AJ7: 성비 | AK7: 인구수 | AL7: 구성비 | AM7: 성비 | AN7: 인구수 | AO7: 구성비 | AP7: 성비
B8: 합 계 | C8: 계 | D8: 163823 | E8: 100 | F8: 102.91 | G8: 12991 | H8: 100 | I8: 109.19 | J8: 5177 | K8: 100 | L8: 109.43 | M8: 11985 | N8: 100 | O8: 103.41 | P8: 14155 | Q8: 100 | R8: 95.92 | S8: 26632 | T8: 100 | U8: 98.39 | V8: 17411 | W8: 100 | X8: 111.09 | Y8: 15802 | Z8: 100 | AA8: 105.38 | AB8: 15589 | AC8: 100 | AD8: 104.66 | AE8: 12196 | AF8: 100 | AG8: 114.57 | AH8: 5734 | AI8: 100 | AJ8: 124.42 | AK8: 12002 | AL8: 100 | AM8: 87.68 | AN8: 14149 | AO8: 100 | AP8: 93.27
C9: 남 | D9: 83086 | E9: 100 | G9: 6781 | H9: 100 | J9: 2705 | K9: 100 | M9: 6093 | N9: 100 | P9: 6930 | Q9: 100 | S9: 13208 | T9: 100 | V9: 9163 | W9: 100 | Y9: 8108 | Z9: 100 | AB9: 7972 | AC9: 100 | AE9: 6512 | AF9: 100 | AH9: 3179 | AI9: 100 | AK9: 5607 | AL9: 100 | AN9: 6828 | AO9: 100
C10: 여 | D10: 80737 | E10: 100 | G10: 6210 | H10: 100 | J10: 2472 | K10: 100 | M10: 5892 | N10: 100 | P10: 7225 | Q10: 100 | S10: 13424 | T10: 100 | V10: 8248 | W10: 100 | Y10: 7694 | Z10: 100 | AB10: 7617 | AC10: 100 | AE10: 5684 | AF10: 100 | AH10: 2555 | AI10: 100 | AK10: 6395 | AL10: 100 | AN10: 7321 | AO10: 100
B11: 0세 | C11: 계 | D11: 785 | E11: 0.48 | F11: 111.59 | G11: 34 | H11: 0.26 | I11: 126.67 | J11: 12 | K11: 0.23 | L11: 50 | M11: 63 | N11: 0.53 | O11: 133.33 | P11: 30 | Q11: 0.21 | R11: 57.89 | S11: 122 | T11: 0.46 | U11: 139.22 | V11: 47 | W11: 0.27 | X11: 123.81 | Y11: 146 | Z11: 0.92 | AA11: 108.57 | AB11: 140 | AC11: 0.9 | AD11: 108.96 | AE11: 48 | AF11: 0.39 | AG11: 84.62 | AH11: 22 | AI11: 0.38 | AJ11: 144.44 | AK11: 75 | AL11: 0.62 | AM11: 127.27 | AN11: 46 | AO11: 0.33 | AP11: 84
C12: 남 | D12: 414 | E12: 0.5 | G12: 19 | H12: 0.28 | J12: 4 | K12: 0.15 | M12: 36 | N12: 0.59 | P12: 11 | Q12: 0.16 | S12: 71 | T12: 0.54 | V12: 26 | W12: 0.28 | Y12: 76 | Z12: 0.94 | AB12: 73 | AC12: 0.92 | AE12: 22 | AF12: 0.34 | AH12: 13 | AI12: 0.41 | AK12: 42 | AL12: 0.75 | AN12: 21 | AO12: 0.31
C13: 여 | D13: 371 | E13: 0.46 | G13: 15 | H13: 0.24 | J13: 8 | K13: 0.32 | M13: 27 | N13: 0.46 | P13: 19 | Q13: 0.26 | S13: 51 | T13: 0.38 | V13: 21 | W13: 0.25 | Y13: 70 | Z13: 0.91 | AB13: 67 | AC13: 0.88 | AE13: 26 | AF13: 0.46 | AH13: 9 | AI13: 0.35 | AK13: 33 | AL13: 0.52 | AN13: 25 | AO13: 0.34
B14: 1세 | C14: 계 | D14: 669 | E14: 0.41 | F14: 105.85 | G14: 33 | H14: 0.25 | I14: 135.71 | J14: 8 | K14: 0.15 | L14: 100 | M14: 57 | N14: 0.48 | O14: 67.65 | P14: 30 | Q14: 0.21 | R14: 114.29 | S14: 130 | T14: 0.49 | U14: 94.03 | V14: 38 | W14: 0.22 | X14: 111.11 | Y14: 118 | Z14: 0.75 | AA14: 118.52 | AB14: 100 | AC14: 0.64 | AD14: 112.77 | AE14: 36 | AF14: 0.3 | AG14: 140 | AH14: 16 | AI14: 0.28 | AJ14: 77.78 | AK14: 65 | AL14: 0.54 | AM14: 96.97 | AN14: 38 | AO14: 0.27 | AP14: 137.5
C15: 남 | D15: 344 | E15: 0.41 | G15: 19 | H15: 0.28 | J15: 4 | K15: 0.15 | M15: 23 | N15: 0.38 | P15: 16 | Q15: 0.23 | S15: 63 | T15: 0.48 | V15: 20 | W15: 0.22 | Y15: 64 | Z15: 0.79 | AB15: 53 | AC15: 0.66 | AE15: 21 | AF15: 0.32 | AH15: 7 | AI15: 0.22 | AK15: 32 | AL15: 0.57 | AN15: 22 | AO15: 0.32
C16: 여 | D16: 325 | E16: 0.4 | G16: 14 | H16: 0.23 | J16: 4 | K16: 0.16 | M16: 34 | N16: 0.58 | P16: 14 | Q16: 0.19 | S16: 67 | T16: 0.5 | V16: 18 | W16: 0.22 | Y16: 54 | Z16: 0.7 | AB16: 47 | AC16: 0.62 | AE16: 15 | AF16: 0.26 | AH16: 9 | AI16: 0.35 | AK16: 33 | AL16: 0.52 | AN16: 16 | AO16: 0.22
B17: 2세 | C17: 계 | D17: 659 | E17: 0.4 | F17: 106.58 | G17: 29 | H17: 0.22 | I17: 123.08 | J17: 13 | K17: 0.25 | L17: 225 | M17: 49 | N17: 0.41 | O17: 122.73 | P17: 33 | Q17: 0.23 | R17: 94.12 | S17: 144 | T17: 0.54 | U17: 82.28 | V17: 29 | W17: 0.17 | X17: 141.67 | Y17: 113 | Z17: 0.72 | AA17: 117.31 | AB17: 89 | AC17: 0.57 | AD17: 102.27 | AE17: 32 | AF17: 0.26 | AG17: 77.78 | AH17: 19 | AI17: 0.33 | AJ17: 171.43 | AK17: 65 | AL17: 0.54 | AM17: 103.13 | AN17: 44 | AO17: 0.31 | AP17: 131.58
C18: 남 | D18: 340 | E18: 0.41 | G18: 16 | H18: 0.24 | J18: 9 | K18: 0.33 | M18: 27 | N18: 0.44 | P18: 16 | Q18: 0.23 | S18: 65 | T18: 0.49 | V18: 17 | W18: 0.19 | Y18: 61 | Z18: 0.75 | AB18: 45 | AC18: 0.56 | AE18: 14 | AF18: 0.21 | AH18: 12 | AI18: 0.38 | AK18: 33 | AL18: 0.59 | AN18: 25 | AO18: 0.37
C19: 여 | D19: 319 | E19: 0.4 | G19: 13 | H19: 0.21 | J19: 4 | K19: 0.16 | M19: 22 | N19: 0.37 | P19: 17 | Q19: 0.24 | S19: 79 | T19: 0.59 | V19: 12 | W19: 0.15 | Y19: 52 | Z19: 0.68 | AB19: 44 | AC19: 0.58 | AE19: 18 | AF19: 0.32 | AH19: 7 | AI19: 0.27 | AK19: 32 | AL19: 0.5 | AN19: 19 | AO19: 0.26
B20: 3세 | C20: 계 | D20: 695 | E20: 0.42 | F20: 121.34 | G20: 26 | H20: 0.2 | I20: 116.67 | J20: 8 | K20: 0.15 | L20: 700 | M20: 66 | N20: 0.55 | O20: 175 | P20: 35 | Q20: 0.25 | R20: 133.33 | S20: 129 | T20: 0.48 | U20: 143.4 | V20: 30 | W20: 0.17 | X20: 233.33 | Y20: 106 | Z20: 0.67 | AA20: 58.21 | AB20: 139 | AC20: 0.89 | AD20: 135.59 | AE20: 39 | AF20: 0.32 | AG20: 116.67 | AH20: 17 | AI20: 0.3 | AJ20: 142.86 | AK20: 60 | AL20: 0.5 | AM20: 100 | AN20: 40 | AO20: 0.28 | AP20: 110.53
C21: 남 | D21: 381 | E21: 0.46 | G21: 14 | H21: 0.21 | J21: 7 | K21: 0.26 | M21: 42 | N21: 0.69 | P21: 20 | Q21: 0.29 | S21: 76 | T21: 0.58 | V21: 21 | W21: 0.23 | Y21: 39 | Z21: 0.48 | AB21: 80 | AC21: 1 | AE21: 21 | AF21: 0.32 | AH21: 10 | AI21: 0.31 | AK21: 30 | AL21: 0.54 | AN21: 21 | AO21: 0.31
C22: 여 | D22: 314 | E22: 0.39 | G22: 12 | H22: 0.19 | J22: 1 | K22: 0.04 | M22: 24 | N22: 0.41 | P22: 15 | Q22: 0.21 | S22: 53 | T22: 0.39 | V22: 9 | W22: 0.11 | Y22: 67 | Z22: 0.87 | AB22: 59 | AC22: 0.77 | AE22: 18 | AF22: 0.32 | AH22: 7 | AI22: 0.27 | AK22: 30 | AL22: 0.47 | AN22: 19 | AO22: 0.26
B23: 4세 | C23: 계 | D23: 609 | E23: 0.37 | F23: 92.11 | G23: 30 | H23: 0.23 | I23: 130.77 | J23: 11 | K23: 0.21 | L23: 83.33 | M23: 49 | N23: 0.41 | O23: 96 | P23: 35 | Q23: 0.25 | R23: 133.33 | S23: 127 | T23: 0.48 | U23: 89.55 | V23: 31 | W23: 0.18 | X23: 106.67 | Y23: 74 | Z23: 0.47 | AA23: 72.09 | AB23: 115 | AC23: 0.74 | AD23: 85.48 | AE23: 34 | AF23: 0.28 | AG23: 100 | AH23: 20 | AI23: 0.35 | AJ23: 53.85 | AK23: 52 | AL23: 0.43 | AM23: 92.59 | AN23: 31 | AO23: 0.22 | AP23: 121.43
C24: 남 | D24: 292 | E24: 0.35 | G24: 17 | H24: 0.25 | J24: 5 | K24: 0.18 | M24: 24 | N24: 0.39 | P24: 20 | Q24: 0.29 | S24: 60 | T24: 0.45 | V24: 16 | W24: 0.17 | Y24: 31 | Z24: 0.38 | AB24: 53 | AC24: 0.66 | AE24: 17 | AF24: 0.26 | AH24: 7 | AI24: 0.22 | AK24: 25 | AL24: 0.45 | AN24: 17 | AO24: 0.25
C25: 여 | D25: 317 | E25: 0.39 | G25: 13 | H25: 0.21 | J25: 6 | K25: 0.24 | M25: 25 | N25: 0.42 | P25: 15 | Q25: 0.21 | S25: 67 | T25: 0.5 | V25: 15 | W25: 0.18 | Y25: 43 | Z25: 0.56 | AB25: 62 | AC25: 0.81 | AE25: 17 | AF25: 0.3 | AH25: 13 | AI25: 0.51 | AK25: 27 | AL25: 0.42 | AN25: 14 | AO25: 0.19
B26: 5세 | C26: 계 | D26: 656 | E26: 0.4 | F26: 106.29 | G26: 24 | H26: 0.18 | I26: 118.18 | J26: 15 | K26: 0.29 | L26: 150 | M26: 41 | N26: 0.34 | O26: 105 | P26: 31 | Q26: 0.22 | R26: 82.35 | S26: 149 | T26: 0.56 | U26: 88.61 | V26: 48 | W26: 0.28 | X26: 118.18 | Y26: 65 | Z26: 0.41 | AA26: 85.71 | AB26: 122 | AC26: 0.78 | AD26: 125.93 | AE26: 45 | AF26: 0.37 | AG26: 104.55 | AH26: 23 | AI26: 0.4 | AJ26: 155.56 | AK26: 61 | AL26: 0.51 | AM26: 125.93 | AN26: 32 | AO26: 0.23 | AP26: 100
C27: 남 | D27: 338 | E27: 0.41 | G27: 13 | H27: 0.19 | J27: 9 | K27: 0.33 | M27: 21 | N27: 0.34 | P27: 14 | Q27: 0.2 | S27: 70 | T27: 0.53 | V27: 26 | W27: 0.28 | Y27: 30 | Z27: 0.37 | AB27: 68 | AC27: 0.85 | AE27: 23 | AF27: 0.35 | AH27: 14 | AI27: 0.44 | AK27: 34 | AL27: 0.61 | AN27: 16 | AO27: 0.23
C28: 여 | D28: 318 | E28: 0.39 | G28: 11 | H28: 0.18 | J28: 6 | K28: 0.24 | M28: 20 | N28: 0.34 | P28: 17 | Q28: 0.24 | S28: 79 | T28: 0.59 | V28: 22 | W28: 0.27 | Y28: 35 | Z28: 0.45 | AB28: 54 | AC28: 0.71 | AE28: 22 | AF28: 0.39 | AH28: 9 | AI28: 0.35 | AK28: 27 | AL28: 0.42 | AN28: 16 | AO28: 0.22
B29: 6세 | C29: 계 | D29: 673 | E29: 0.41 | F29: 107.08 | G29: 22 | H29: 0.17 | I29: 266.67 | J29: 11 | K29: 0.21 | L29: 22.22 | M29: 53 | N29: 0.44 | O29: 96.3 | P29: 32 | Q29: 0.23 | R29: 100 | S29: 141 | T29: 0.53 | U29: 120.31 | V29: 45 | W29: 0.26 | X29: 104.55 | Y29: 79 | Z29: 0.5 | AA29: 107.89 | AB29: 127 | AC29: 0.81 | AD29: 111.67 | AE29: 46 | AF29: 0.38 | AG29: 84 | AH29: 20 | AI29: 0.35 | AJ29: 81.82 | AK29: 44 | AL29: 0.37 | AM29: 83.33 | AN29: 53 | AO29: 0.37 | AP29: 130.43
C30: 남 | D30: 348 | E30: 0.42 | G30: 16 | H30: 0.24 | J30: 2 | K30: 0.07 | M30: 26 | N30: 0.43 | P30: 16 | Q30: 0.23 | S30: 77 | T30: 0.58 | V30: 23 | W30: 0.25 | Y30: 41 | Z30: 0.51 | AB30: 67 | AC30: 0.84 | AE30: 21 | AF30: 0.32 | AH30: 9 | AI30: 0.28 | AK30: 20 | AL30: 0.36 | AN30: 30 | AO30: 0.44
C31: 여 | D31: 325 | E31: 0.4 | G31: 6 | H31: 0.1 | J31: 9 | K31: 0.36 | M31: 27 | N31: 0.46 | P31: 16 | Q31: 0.22 | S31: 64 | T31: 0.48 | V31: 22 | W31: 0.27 | Y31: 38 | Z31: 0.49 | AB31: 60 | AC31: 0.79 | AE31: 25 | AF31: 0.44 | AH31: 11 | AI31: 0.43 | AK31: 24 | AL31: 0.38 | AN31: 23 | AO31: 0.31
B32: 7세 | C32: 계 | D32: 800 | E32: 0.49 | F32: 93.7 | G32: 36 | H32: 0.28 | I32: 100 | J32: 12 | K32: 0.23 | L32: 100 | M32: 42 | N32: 0.35 | O32: 100 | P32: 56 | Q32: 0.4 | R32: 166.67 | S32: 172 | T32: 0.65 | U32: 86.96 | V32: 58 | W32: 0.33 | X32: 87.1 | Y32: 67 | Z32: 0.42 | AA32: 91.43 | AB32: 144 | AC32: 0.92 | AD32: 121.54 | AE32: 42 | AF32: 0.34 | AG32: 90.91 | AH32: 25 | AI32: 0.44 | AJ32: 56.25 | AK32: 65 | AL32: 0.54 | AM32: 75.68 | AN32: 81 | AO32: 0.57 | AP32: 65.31
C33: 남 | D33: 387 | E33: 0.47 | G33: 18 | H33: 0.27 | J33: 6 | K33: 0.22 | M33: 21 | N33: 0.34 | P33: 35 | Q33: 0.51 | S33: 80 | T33: 0.61 | V33: 27 | W33: 0.29 | Y33: 32 | Z33: 0.39 | AB33: 79 | AC33: 0.99 | AE33: 20 | AF33: 0.31 | AH33: 9 | AI33: 0.28 | AK33: 28 | AL33: 0.5 | AN33: 32 | AO33: 0.47
C34: 여 | D34: 413 | E34: 0.51 | G34: 18 | H34: 0.29 | J34: 6 | K34: 0.24 | M34: 21 | N34: 0.36 | P34: 21 | Q34: 0.29 | S34: 92 | T34: 0.69 | V34: 31 | W34: 0.38 | Y34: 35 | Z34: 0.45 | AB34: 65 | AC34: 0.85 | AE34: 22 | AF34: 0.39 | AH34: 16 | AI34: 0.63 | AK34: 37 | AL34: 0.58 | AN34: 49 | AO34: 0.67
B35: 8세 | C35: 계 | D35: 799 | E35: 0.49 | F35: 95.35 | G35: 32 | H35: 0.25 | I35: 88.24 | J35: 16 | K35: 0.31 | L35: 77.78 | M35: 50 | N35: 0.42 | O35: 108.33 | P35: 50 | Q35: 0.35 | R35: 100 | S35: 209 | T35: 0.78 | U35: 90 | V35: 42 | W35: 0.24 | X35: 147.06 | Y35: 79 | Z35: 0.5 | AA35: 92.68 | AB35: 151 | AC35: 0.97 | AD35: 88.75 | AE35: 31 | AF35: 0.25 | AG35: 106.67 | AH35: 17 | AI35: 0.3 | AJ35: 142.86 | AK35: 49 | AL35: 0.41 | AM35: 104.17 | AN35: 73 | AO35: 0.52 | AP35: 82.5
C36: 남 | D36: 390 | E36: 0.47 | G36: 15 | H36: 0.22 | J36: 7 | K36: 0.26 | M36: 26 | N36: 0.43 | P36: 25 | Q36: 0.36 | S36: 99 | T36: 0.75 | V36: 25 | W36: 0.27 | Y36: 38 | Z36: 0.47 | AB36: 71 | AC36: 0.89 | AE36: 16 | AF36: 0.25 | AH36: 10 | AI36: 0.31 | AK36: 25 | AL36: 0.45 | AN36: 33 | AO36: 0.48
C37: 여 | D37: 409 | E37: 0.51 | G37: 17 | H37: 0.27 | J37: 9 | K37: 0.36 | M37: 24 | N37: 0.41 | P37: 25 | Q37: 0.35 | S37: 110 | T37: 0.82 | V37: 17 | W37: 0.21 | Y37: 41 | Z37: 0.53 | AB37: 80 | AC37: 1.05 | AE37: 15 | AF37: 0.26 | AH37: 7 | AI37: 0.27 | AK37: 24 | AL37: 0.38 | AN37: 40 | AO37: 0.55
B38: 9세 | C38: 계 | D38: 959 | E38: 0.59 | F38: 96.52 | G38: 39 | H38: 0.3 | I38: 62.5 | J38: 16 | K38: 0.31 | L38: 166.67 | M38: 50 | N38: 0.42 | O38: 92.31 | P38: 75 | Q38: 0.53 | R38: 74.42 | S38: 213 | T38: 0.8 | U38: 90.18 | V38: 74 | W38: 0.43 | X38: 94.74 | Y38: 72 | Z38: 0.46 | AA38: 105.71 | AB38: 180 | AC38: 1.15 | AD38: 125 | AE38: 64 | AF38: 0.52 | AG38: 128.57 | AH38: 26 | AI38: 0.45 | AJ38: 52.94 | AK38: 67 | AL38: 0.56 | AM38: 59.52 | AN38: 83 | AO38: 0.59 | AP38: 124.32
C39: 남 | D39: 471 | E39: 0.57 | G39: 15 | H39: 0.22 | J39: 10 | K39: 0.37 | M39: 24 | N39: 0.39 | P39: 32 | Q39: 0.46 | S39: 101 | T39: 0.76 | V39: 36 | W39: 0.39 | Y39: 37 | Z39: 0.46 | AB39: 100 | AC39: 1.25 | AE39: 36 | AF39: 0.55 | AH39: 9 | AI39: 0.28 | AK39: 25 | AL39: 0.45 | AN39: 46 | AO39: 0.67
C40: 여 | D40: 488 | E40: 0.6 | G40: 24 | H40: 0.39 | J40: 6 | K40: 0.24 | M40: 26 | N40: 0.44 | P40: 43 | Q40: 0.6 | S40: 112 | T40: 0.83 | V40: 38 | W40: 0.46 | Y40: 35 | Z40: 0.45 | AB40: 80 | AC40: 1.05 | AE40: 28 | AF40: 0.49 | AH40: 17 | AI40: 0.67 | AK40: 42 | AL40: 0.66 | AN40: 37 | AO40: 0.51
B41: 10세 | C41: 계 | D41: 1016 | E41: 0.62 | F41: 92.06 | G41: 51 | H41: 0.39 | I41: 70 | J41: 20 | K41: 0.39 | L41: 233.33 | M41: 57 | N41: 0.48 | O41: 103.57 | P41: 74 | Q41: 0.52 | R41: 100 | S41: 228 | T41: 0.86 | U41: 93.22 | V41: 71 | W41: 0.41 | X41: 61.36 | Y41: 83 | Z41: 0.53 | AA41: 66 | AB41: 197 | AC41: 1.26 | AD41: 79.09 | AE41: 40 | AF41: 0.33 | AG41: 135.29 | AH41: 36 | AI41: 0.63 | AJ41: 157.14 | AK41: 70 | AL41: 0.58 | AM41: 141.38 | AN41: 89 | AO41: 0.63 | AP41: 93.48
C42: 남 | D42: 487 | E42: 0.59 | G42: 21 | H42: 0.31 | J42: 14 | K42: 0.52 | M42: 29 | N42: 0.48 | P42: 37 | Q42: 0.53 | S42: 110 | T42: 0.83 | V42: 27 | W42: 0.29 | Y42: 33 | Z42: 0.41 | AB42: 87 | AC42: 1.09 | AE42: 23 | AF42: 0.35 | AH42: 22 | AI42: 0.69 | AK42: 41 | AL42: 0.73 | AN42: 43 | AO42: 0.63
C43: 여 | D43: 529 | E43: 0.66 | G43: 30 | H43: 0.48 | J43: 6 | K43: 0.24 | M43: 28 | N43: 0.48 | P43: 37 | Q43: 0.51 | S43: 118 | T43: 0.88 | V43: 44 | W43: 0.53 | Y43: 50 | Z43: 0.65 | AB43: 110 | AC43: 1.44 | AE43: 17 | AF43: 0.3 | AH43: 14 | AI43: 0.55 | AK43: 29 | AL43: 0.45 | AN43: 46 | AO43: 0.63
B44: 11세 | C44: 계 | D44: 1112 | E44: 0.68 | F44: 116.34 | G44: 64 | H44: 0.49 | I44: 113.33 | J44: 20 | K44: 0.39 | L44: 122.22 | M44: 49 | N44: 0.41 | O44: 104.17 | P44: 90 | Q44: 0.64 | R44: 125 | S44: 232 | T44: 0.87 | U44: 125.24 | V44: 91 | W44: 0.52 | X44: 111.63 | Y44: 94 | Z44: 0.59 | AA44: 91.84 | AB44: 211 | AC44: 1.35 | AD44: 142.53 | AE44: 55 | AF44: 0.45 | AG44: 103.7 | AH44: 31 | AI44: 0.54 | AJ44: 138.46 | AK44: 71 | AL44: 0.59 | AM44: 91.89 | AN44: 104 | AO44: 0.74 | AP44: 100
C45: 남 | D45: 598 | E45: 0.72 | G45: 34 | H45: 0.5 | J45: 11 | K45: 0.41 | M45: 25 | N45: 0.41 | P45: 50 | Q45: 0.72 | S45: 129 | T45: 0.98 | V45: 48 | W45: 0.52 | Y45: 45 | Z45: 0.56 | AB45: 124 | AC45: 1.56 | AE45: 28 | AF45: 0.43 | AH45: 18 | AI45: 0.57 | AK45: 34 | AL45: 0.61 | AN45: 52 | AO45: 0.76
C46: 여 | D46: 514 | E46: 0.64 | G46: 30 | H46: 0.48 | J46: 9 | K46: 0.36 | M46: 24 | N46: 0.41 | P46: 40 | Q46: 0.55 | S46: 103 | T46: 0.77 | V46: 43 | W46: 0.52 | Y46: 49 | Z46: 0.64 | AB46: 87 | AC46: 1.14 | AE46: 27 | AF46: 0.48 | AH46: 13 | AI46: 0.51 | AK46: 37 | AL46: 0.58 | AN46: 52 | AO46: 0.71
B47: 12세 | C47: 계 | D47: 1183 | E47: 0.72 | F47: 115.09 | G47: 48 | H47: 0.37 | I47: 152.63 | J47: 25 | K47: 0.48 | L47: 212.5 | M47: 64 | N47: 0.53 | O47: 113.33 | P47: 90 | Q47: 0.64 | R47: 136.84 | S47: 279 | T47: 1.05 | U47: 96.48 | V47: 82 | W47: 0.47 | X47: 110.26 | Y47: 88 | Z47: 0.56 | AA47: 95.56 | AB47: 217 | AC47: 1.39 | AD47: 104.72 | AE47: 62 | AF47: 0.51 | AG47: 138.46 | AH47: 38 | AI47: 0.66 | AJ47: 216.67 | AK47: 81 | AL47: 0.67 | AM47: 102.5 | AN47: 109 | AO47: 0.77 | AP47: 142.22
C48: 남 | D48: 633 | E48: 0.76 | G48: 29 | H48: 0.43 | J48: 17 | K48: 0.63 | M48: 34 | N48: 0.56 | P48: 52 | Q48: 0.75 | S48: 137 | T48: 1.04 | V48: 43 | W48: 0.47 | Y48: 43 | Z48: 0.53 | AB48: 111 | AC48: 1.39 | AE48: 36 | AF48: 0.55 | AH48: 26 | AI48: 0.82 | AK48: 41 | AL48: 0.73 | AN48: 64 | AO48: 0.94
C49: 여 | D49: 550 | E49: 0.68 | G49: 19 | H49: 0.31 | J49: 8 | K49: 0.32 | M49: 30 | N49: 0.51 | P49: 38 | Q49: 0.53 | S49: 142 | T49: 1.06 | V49: 39 | W49: 0.47 | Y49: 45 | Z49: 0.58 | AB49: 106 | AC49: 1.39 | AE49: 26 | AF49: 0.46 | AH49: 12 | AI49: 0.47 | AK49: 40 | AL49: 0.63 | AN49: 45 | AO49: 0.61
B50: 13세 | C50: 계 | D50: 1254 | E50: 0.77 | F50: 97.48 | G50: 75 | H50: 0.58 | I50: 74.42 | J50: 29 | K50: 0.56 | L50: 123.08 | M50: 74 | N50: 0.62 | O50: 76.19 | P50: 79 | Q50: 0.56 | R50: 79.55 | S50: 298 | T50: 1.12 | U50: 109.86 | V50: 99 | W50: 0.57 | X50: 110.64 | Y50: 105 | Z50: 0.66 | AA50: 110 | AB50: 200 | AC50: 1.28 | AD50: 96.08 | AE50: 76 | AF50: 0.62 | AG50: 85.37 | AH50: 45 | AI50: 0.78 | AJ50: 80 | AK50: 80 | AL50: 0.67 | AM50: 100 | AN50: 94 | AO50: 0.66 | AP50: 104.35
C51: 남 | D51: 619 | E51: 0.75 | G51: 32 | H51: 0.47 | J51: 16 | K51: 0.59 | M51: 32 | N51: 0.53 | P51: 35 | Q51: 0.51 | S51: 156 | T51: 1.18 | V51: 52 | W51: 0.57 | Y51: 55 | Z51: 0.68 | AB51: 98 | AC51: 1.23 | AE51: 35 | AF51: 0.54 | AH51: 20 | AI51: 0.63 | AK51: 40 | AL51: 0.71 | AN51: 48 | AO51: 0.7
C52: 여 | D52: 635 | E52: 0.79 | G52: 43 | H52: 0.69 | J52: 13 | K52: 0.53 | M52: 42 | N52: 0.71 | P52: 44 | Q52: 0.61 | S52: 142 | T52: 1.06 | V52: 47 | W52: 0.57 | Y52: 50 | Z52: 0.65 | AB52: 102 | AC52: 1.34 | AE52: 41 | AF52: 0.72 | AH52: 25 | AI52: 0.98 | AK52: 40 | AL52: 0.63 | AN52: 46 | AO52: 0.63
B53: 14세 | C53: 계 | D53: 1324 | E53: 0.81 | F53: 107.52 | G53: 72 | H53: 0.55 | I53: 148.28 | J53: 34 | K53: 0.66 | L53: 78.95 | M53: 77 | N53: 0.64 | O53: 102.63 | P53: 109 | Q53: 0.77 | R53: 105.66 | S53: 310 | T53: 1.16 | U53: 103.95 | V53: 117 | W53: 0.67 | X53: 105.26 | Y53: 112 | Z53: 0.71 | AA53: 89.83 | AB53: 174 | AC53: 1.12 | AD53: 123.08 | AE53: 80 | AF53: 0.66 | AG53: 158.06 | AH53: 41 | AI53: 0.72 | AJ53: 64 | AK53: 80 | AL53: 0.67 | AM53: 95.12 | AN53: 118 | AO53: 0.83 | AP53: 110.71
C54: 남 | D54: 686 | E54: 0.83 | G54: 43 | H54: 0.63 | J54: 15 | K54: 0.55 | M54: 39 | N54: 0.64 | P54: 56 | Q54: 0.81 | S54: 158 | T54: 1.2 | V54: 60 | W54: 0.65 | Y54: 53 | Z54: 0.65 | AB54: 96 | AC54: 1.2 | AE54: 49 | AF54: 0.75 | AH54: 16 | AI54: 0.5 | AK54: 39 | AL54: 0.7 | AN54: 62 | AO54: 0.91
C55: 여 | D55: 638 | E55: 0.79 | G55: 29 | H55: 0.47 | J55: 19 | K55: 0.77 | M55: 38 | N55: 0.64 | P55: 53 | Q55: 0.73 | S55: 152 | T55: 1.13 | V55: 57 | W55: 0.69 | Y55: 59 | Z55: 0.77 | AB55: 78 | AC55: 1.02 | AE55: 31 | AF55: 0.55 | AH55: 25 | AI55: 0.98 | AK55: 41 | AL55: 0.64 | AN55: 56 | AO55: 0.76
B56: 15세 | C56: 계 | D56: 1385 | E56: 0.85 | F56: 105.49 | G56: 93 | H56: 0.72 | I56: 165.71 | J56: 37 | K56: 0.71 | L56: 146.67 | M56: 77 | N56: 0.64 | O56: 133.33 | P56: 115 | Q56: 0.81 | R56: 91.67 | S56: 335 | T56: 1.26 | U56: 92.53 | V56: 110 | W56: 0.63 | X56: 103.7 | Y56: 104 | Z56: 0.66 | AA56: 100 | AB56: 196 | AC56: 1.26 | AD56: 104.17 | AE56: 95 | AF56: 0.78 | AG56: 106.52 | AH56: 49 | AI56: 0.85 | AJ56: 81.48 | AK56: 69 | AL56: 0.57 | AM56: 91.67 | AN56: 105 | AO56: 0.74 | AP56: 128.26
C57: 남 | D57: 711 | E57: 0.86 | G57: 58 | H57: 0.86 | J57: 22 | K57: 0.81 | M57: 44 | N57: 0.72 | P57: 55 | Q57: 0.79 | S57: 161 | T57: 1.22 | V57: 56 | W57: 0.61 | Y57: 52 | Z57: 0.64 | AB57: 100 | AC57: 1.25 | AE57: 49 | AF57: 0.75 | AH57: 22 | AI57: 0.69 | AK57: 33 | AL57: 0.59 | AN57: 59 | AO57: 0.86
C58: 여 | D58: 674 | E58: 0.83 | G58: 35 | H58: 0.56 | J58: 15 | K58: 0.61 | M58: 33 | N58: 0.56 | P58: 60 | Q58: 0.83 | S58: 174 | T58: 1.3 | V58: 54 | W58: 0.65 | Y58: 52 | Z58: 0.68 | AB58: 96 | AC58: 1.26 | AE58: 46 | AF58: 0.81 | AH58: 27 | AI58: 1.06 | AK58: 36 | AL58: 0.56 | AN58: 46 | AO58: 0.63
B59: 16세 | C59: 계 | D59: 1348 | E59: 0.82 | F59: 114.31 | G59: 77 | H59: 0.59 | I59: 102.63 | J59: 38 | K59: 0.73 | L59: 90 | M59: 80 | N59: 0.67 | O59: 105.13 | P59: 133 | Q59: 0.94 | R59: 121.67 | S59: 310 | T59: 1.16 | U59: 116.78 | V59: 113 | W59: 0.65 | X59: 130.61 | Y59: 117 | Z59: 0.74 | AA59: 91.8 | AB59: 143 | AC59: 0.92 | AD59: 116.67 | AE59: 83 | AF59: 0.68 | AG59: 93.02 | AH59: 41 | AI59: 0.72 | AJ59: 115.79 | AK59: 88 | AL59: 0.73 | AM59: 131.58 | AN59: 125 | AO59: 0.88 | AP59: 135.85
C60: 남 | D60: 719 | E60: 0.87 | G60: 39 | H60: 0.58 | J60: 18 | K60: 0.67 | M60: 41 | N60: 0.67 | P60: 73 | Q60: 1.05 | S60: 167 | T60: 1.26 | V60: 64 | W60: 0.7 | Y60: 56 | Z60: 0.69 | AB60: 77 | AC60: 0.97 | AE60: 40 | AF60: 0.61 | AH60: 22 | AI60: 0.69 | AK60: 50 | AL60: 0.89 | AN60: 72 | AO60: 1.05
C61: 여 | D61: 629 | E61: 0.78 | G61: 38 | H61: 0.61 | J61: 20 | K61: 0.81 | M61: 39 | N61: 0.66 | P61: 60 | Q61: 0.83 | S61: 143 | T61: 1.07 | V61: 49 | W61: 0.59 | Y61: 61 | Z61: 0.79 | AB61: 66 | AC61: 0.87 | AE61: 43 | AF61: 0.76 | AH61: 19 | AI61: 0.74 | AK61: 38 | AL61: 0.59 | AN61: 53 | AO61: 0.72
B62: 17세 | C62: 계 | D62: 1356 | E62: 0.83 | F62: 107.34 | G62: 84 | H62: 0.65 | I62: 140 | J62: 35 | K62: 0.68 | L62: 133.33 | M62: 92 | N62: 0.77 | O62: 124.39 | P62: 127 | Q62: 0.9 | R62: 118.97 | S62: 326 | T62: 1.22 | U62: 92.9 | V62: 116 | W62: 0.67 | X62: 127.45 | Y62: 95 | Z62: 0.6 | AA62: 90 | AB62: 150 | AC62: 0.96 | AD62: 127.27 | AE62: 78 | AF62: 0.64 | AG62: 90.24 | AH62: 55 | AI62: 0.96 | AJ62: 61.76 | AK62: 95 | AL62: 0.79 | AM62: 90 | AN62: 103 | AO62: 0.73 | AP62: 134.09
C63: 남 | D63: 702 | E63: 0.84 | G63: 49 | H63: 0.72 | J63: 20 | K63: 0.74 | M63: 51 | N63: 0.84 | P63: 69 | Q63: 1 | S63: 157 | T63: 1.19 | V63: 65 | W63: 0.71 | Y63: 45 | Z63: 0.56 | AB63: 84 | AC63: 1.05 | AE63: 37 | AF63: 0.57 | AH63: 21 | AI63: 0.66 | AK63: 45 | AL63: 0.8 | AN63: 59 | AO63: 0.86
C64: 여 | D64: 654 | E64: 0.81 | G64: 35 | H64: 0.56 | J64: 15 | K64: 0.61 | M64: 41 | N64: 0.7 | P64: 58 | Q64: 0.8 | S64: 169 | T64: 1.26 | V64: 51 | W64: 0.62 | Y64: 50 | Z64: 0.65 | AB64: 66 | AC64: 0.87 | AE64: 41 | AF64: 0.72 | AH64: 34 | AI64: 1.33 | AK64: 50 | AL64: 0.78 | AN64: 44 | AO64: 0.6
B65: 18세 | C65: 계 | D65: 1542 | E65: 0.94 | F65: 105.05 | G65: 136 | H65: 1.05 | I65: 86.3 | J65: 54 | K65: 1.04 | L65: 145.45 | M65: 74 | N65: 0.62 | O65: 124.24 | P65: 155 | Q65: 1.1 | R65: 103.95 | S65: 322 | T65: 1.21 | U65: 93.98 | V65: 145 | W65: 0.83 | X65: 95.95 | Y65: 108 | Z65: 0.68 | AA65: 103.77 | AB65: 140 | AC65: 0.9 | AD65: 115.38 | AE65: 100 | AF65: 0.82 | AG65: 143.9 | AH65: 72 | AI65: 1.26 | AJ65: 125 | AK65: 110 | AL65: 0.92 | AM65: 107.55 | AN65: 126 | AO65: 0.89 | AP65: 96.88
C66: 남 | D66: 790 | E66: 0.95 | G66: 63 | H66: 0.93 | J66: 32 | K66: 1.18 | M66: 41 | N66: 0.67 | P66: 79 | Q66: 1.14 | S66: 156 | T66: 1.18 | V66: 71 | W66: 0.77 | Y66: 55 | Z66: 0.68 | AB66: 75 | AC66: 0.94 | AE66: 59 | AF66: 0.91 | AH66: 40 | AI66: 1.26 | AK66: 57 | AL66: 1.02 | AN66: 62 | AO66: 0.91
C67: 여 | D67: 752 | E67: 0.93 | G67: 73 | H67: 1.18 | J67: 22 | K67: 0.89 | M67: 33 | N67: 0.56 | P67: 76 | Q67: 1.05 | S67: 166 | T67: 1.24 | V67: 74 | W67: 0.9 | Y67: 53 | Z67: 0.69 | AB67: 65 | AC67: 0.85 | AE67: 41 | AF67: 0.72 | AH67: 32 | AI67: 1.25 | AK67: 53 | AL67: 0.83 | AN67: 64 | AO67: 0.87
B68: 19세 | C68: 계 | D68: 1550 | E68: 0.95 | F68: 108.33 | G68: 191 | H68: 1.47 | I68: 87.25 | J68: 37 | K68: 0.71 | L68: 131.25 | M68: 77 | N68: 0.64 | O68: 102.63 | P68: 141 | Q68: 1 | R68: 143.1 | S68: 353 | T68: 1.33 | U68: 105.23 | V68: 172 | W68: 0.99 | X68: 81.05 | Y68: 117 | Z68: 0.74 | AA68: 207.89 | AB68: 120 | AC68: 0.77 | AD68: 106.9 | AE68: 88 | AF68: 0.72 | AG68: 100 | AH68: 41 | AI68: 0.72 | AJ68: 141.18 | AK68: 80 | AL68: 0.67 | AM68: 100 | AN68: 133 | AO68: 0.94 | AP68: 101.52
C69: 남 | D69: 806 | E69: 0.97 | G69: 89 | H69: 1.31 | J69: 21 | K69: 0.78 | M69: 39 | N69: 0.64 | P69: 83 | Q69: 1.2 | S69: 181 | T69: 1.37 | V69: 77 | W69: 0.84 | Y69: 79 | Z69: 0.97 | AB69: 62 | AC69: 0.78 | AE69: 44 | AF69: 0.68 | AH69: 24 | AI69: 0.75 | AK69: 40 | AL69: 0.71 | AN69: 67 | AO69: 0.98
C70: 여 | D70: 744 | E70: 0.92 | G70: 102 | H70: 1.64 | J70: 16 | K70: 0.65 | M70: 38 | N70: 0.64 | P70: 58 | Q70: 0.8 | S70: 172 | T70: 1.28 | V70: 95 | W70: 1.15 | Y70: 38 | Z70: 0.49 | AB70: 58 | AC70: 0.76 | AE70: 44 | AF70: 0.77 | AH70: 17 | AI70: 0.67 | AK70: 40 | AL70: 0.63 | AN70: 66 | AO70: 0.9
B71: 20세 | C71: 계 | D71: 1416 | E71: 0.86 | F71: 111.66 | G71: 178 | H71: 1.37 | I71: 52.14 | J71: 25 | K71: 0.48 | L71: 257.14 | M71: 97 | N71: 0.81 | O71: 185.29 | P71: 132 | Q71: 0.93 | R71: 103.08 | S71: 298 | T71: 1.12 | U71: 129.23 | V71: 159 | W71: 0.91 | X71: 80.68 | Y71: 90 | Z71: 0.57 | AA71: 275 | AB71: 111 | AC71: 0.71 | AD71: 126.53 | AE71: 81 | AF71: 0.66 | AG71: 118.92 | AH71: 32 | AI71: 0.56 | AJ71: 88.24 | AK71: 104 | AL71: 0.87 | AM71: 112.24 | AN71: 109 | AO71: 0.77 | AP71: 109.62
C72: 남 | D72: 747 | E72: 0.9 | G72: 61 | H72: 0.9 | J72: 18 | K72: 0.67 | M72: 63 | N72: 1.03 | P72: 67 | Q72: 0.97 | S72: 168 | T72: 1.27 | V72: 71 | W72: 0.77 | Y72: 66 | Z72: 0.81 | AB72: 62 | AC72: 0.78 | AE72: 44 | AF72: 0.68 | AH72: 15 | AI72: 0.47 | AK72: 55 | AL72: 0.98 | AN72: 57 | AO72: 0.83
C73: 여 | D73: 669 | E73: 0.83 | G73: 117 | H73: 1.88 | J73: 7 | K73: 0.28 | M73: 34 | N73: 0.58 | P73: 65 | Q73: 0.9 | S73: 130 | T73: 0.97 | V73: 88 | W73: 1.07 | Y73: 24 | Z73: 0.31 | AB73: 49 | AC73: 0.64 | AE73: 37 | AF73: 0.65 | AH73: 17 | AI73: 0.67 | AK73: 49 | AL73: 0.77 | AN73: 52 | AO73: 0.71
B74: 21세 | C74: 계 | D74: 1537 | E74: 0.94 | F74: 113.77 | G74: 234 | H74: 1.8 | I74: 63.64 | J74: 35 | K74: 0.68 | L74: 133.33 | M74: 92 | N74: 0.77 | O74: 109.09 | P74: 132 | Q74: 0.93 | R74: 103.08 | S74: 298 | T74: 1.12 | U74: 140.32 | V74: 167 | W74: 0.96 | X74: 135.21 | Y74: 109 | Z74: 0.69 | AA74: 122.45 | AB74: 121 | AC74: 0.78 | AD74: 124.07 | AE74: 91 | AF74: 0.75 | AG74: 127.5 | AH74: 41 | AI74: 0.72 | AJ74: 115.79 | AK74: 93 | AL74: 0.77 | AM74: 93.75 | AN74: 124 | AO74: 0.88 | AP74: 163.83
C75: 남 | D75: 818 | E75: 0.98 | G75: 91 | H75: 1.34 | J75: 20 | K75: 0.74 | M75: 48 | N75: 0.79 | P75: 67 | Q75: 0.97 | S75: 174 | T75: 1.32 | V75: 96 | W75: 1.05 | Y75: 60 | Z75: 0.74 | AB75: 67 | AC75: 0.84 | AE75: 51 | AF75: 0.78 | AH75: 22 | AI75: 0.69 | AK75: 45 | AL75: 0.8 | AN75: 77 | AO75: 1.13
C76: 여 | D76: 719 | E76: 0.89 | G76: 143 | H76: 2.3 | J76: 15 | K76: 0.61 | M76: 44 | N76: 0.75 | P76: 65 | Q76: 0.9 | S76: 124 | T76: 0.92 | V76: 71 | W76: 0.86 | Y76: 49 | Z76: 0.64 | AB76: 54 | AC76: 0.71 | AE76: 40 | AF76: 0.7 | AH76: 19 | AI76: 0.74 | AK76: 48 | AL76: 0.75 | AN76: 47 | AO76: 0.64
B77: 22세 | C77: 계 | D77: 1644 | E77: 1 | F77: 129.29 | G77: 275 | H77: 2.12 | I77: 96.43 | J77: 35 | K77: 0.68 | L77: 191.67 | M77: 80 | N77: 0.67 | O77: 116.22 | P77: 155 | Q77: 1.1 | R77: 124.64 | S77: 323 | T77: 1.21 | U77: 154.33 | V77: 184 | W77: 1.06 | X77: 170.59 | Y77: 112 | Z77: 0.71 | AA77: 111.32 | AB77: 121 | AC77: 0.78 | AD77: 108.62 | AE77: 104 | AF77: 0.85 | AG77: 188.89 | AH77: 50 | AI77: 0.87 | AJ77: 100 | AK77: 80 | AL77: 0.67 | AM77: 90.48 | AN77: 125 | AO77: 0.88 | AP77: 150
C78: 남 | D78: 927 | E78: 1.12 | G78: 135 | H78: 1.99 | J78: 23 | K78: 0.85 | M78: 43 | N78: 0.71 | P78: 86 | Q78: 1.24 | S78: 196 | T78: 1.48 | V78: 116 | W78: 1.27 | Y78: 59 | Z78: 0.73 | AB78: 63 | AC78: 0.79 | AE78: 68 | AF78: 1.04 | AH78: 25 | AI78: 0.79 | AK78: 38 | AL78: 0.68 | AN78: 75 | AO78: 1.1
C79: 여 | D79: 717 | E79: 0.89 | G79: 140 | H79: 2.25 | J79: 12 | K79: 0.49 | M79: 37 | N79: 0.63 | P79: 69 | Q79: 0.96 | S79: 127 | T79: 0.95 | V79: 68 | W79: 0.82 | Y79: 53 | Z79: 0.69 | AB79: 58 | AC79: 0.76 | AE79: 36 | AF79: 0.63 | AH79: 25 | AI79: 0.98 | AK79: 42 | AL79: 0.66 | AN79: 50 | AO79: 0.68
B80: 23세 | C80: 계 | D80: 1636 | E80: 1 | F80: 123.8 | G80: 279 | H80: 2.15 | I80: 138.46 | J80: 34 | K80: 0.66 | L80: 126.67 | M80: 88 | N80: 0.73 | O80: 120 | P80: 152 | Q80: 1.07 | R80: 126.87 | S80: 270 | T80: 1.01 | U80: 130.77 | V80: 213 | W80: 1.22 | X80: 134.07 | Y80: 116 | Z80: 0.73 | AA80: 123.08 | AB80: 114 | AC80: 0.73 | AD80: 96.55 | AE80: 131 | AF80: 1.07 | AG80: 133.93 | AH80: 42 | AI80: 0.73 | AJ80: 147.06 | AK80: 86 | AL80: 0.72 | AM80: 100 | AN80: 111 | AO80: 0.78 | AP80: 91.38
C81: 남 | D81: 905 | E81: 1.09 | G81: 162 | H81: 2.39 | J81: 19 | K81: 0.7 | M81: 48 | N81: 0.79 | P81: 85 | Q81: 1.23 | S81: 153 | T81: 1.16 | V81: 122 | W81: 1.33 | Y81: 64 | Z81: 0.79 | AB81: 56 | AC81: 0.7 | AE81: 75 | AF81: 1.15 | AH81: 25 | AI81: 0.79 | AK81: 43 | AL81: 0.77 | AN81: 53 | AO81: 0.78
C82: 여 | D82: 731 | E82: 0.91 | G82: 117 | H82: 1.88 | J82: 15 | K82: 0.61 | M82: 40 | N82: 0.68 | P82: 67 | Q82: 0.93 | S82: 117 | T82: 0.87 | V82: 91 | W82: 1.1 | Y82: 52 | Z82: 0.68 | AB82: 58 | AC82: 0.76 | AE82: 56 | AF82: 0.99 | AH82: 17 | AI82: 0.67 | AK82: 43 | AL82: 0.67 | AN82: 58 | AO82: 0.79
B83: 24세 | C83: 계 | D83: 1770 | E83: 1.08 | F83: 123.2 | G83: 222 | H83: 1.71 | I83: 152.27 | J83: 32 | K83: 0.62 | L83: 166.67 | M83: 102 | N83: 0.85 | O83: 100 | P83: 174 | Q83: 1.23 | R83: 81.25 | S83: 308 | T83: 1.16 | U83: 126.47 | V83: 200 | W83: 1.15 | X83: 156.41 | Y83: 157 | Z83: 0.99 | AA83: 130.88 | AB83: 131 | AC83: 0.84 | AD83: 125.86 | AE83: 163 | AF83: 1.34 | AG83: 111.69 | AH83: 65 | AI83: 1.13 | AJ83: 103.13 | AK83: 87 | AL83: 0.72 | AM83: 93.33 | AN83: 129 | AO83: 0.91 | AP83: 148.08
C84: 남 | D84: 977 | E84: 1.18 | G84: 134 | H84: 1.98 | J84: 20 | K84: 0.74 | M84: 51 | N84: 0.84 | P84: 78 | Q84: 1.13 | S84: 172 | T84: 1.3 | V84: 122 | W84: 1.33 | Y84: 89 | Z84: 1.1 | AB84: 73 | AC84: 0.92 | AE84: 86 | AF84: 1.32 | AH84: 33 | AI84: 1.04 | AK84: 42 | AL84: 0.75 | AN84: 77 | AO84: 1.13
C85: 여 | D85: 793 | E85: 0.98 | G85: 88 | H85: 1.42 | J85: 12 | K85: 0.49 | M85: 51 | N85: 0.87 | P85: 96 | Q85: 1.33 | S85: 136 | T85: 1.01 | V85: 78 | W85: 0.95 | Y85: 68 | Z85: 0.88 | AB85: 58 | AC85: 0.76 | AE85: 77 | AF85: 1.35 | AH85: 32 | AI85: 1.25 | AK85: 45 | AL85: 0.7 | AN85: 52 | AO85: 0.71
B86: 25세 | C86: 계 | D86: 1922 | E86: 1.17 | F86: 120.67 | G86: 188 | H86: 1.45 | I86: 172.46 | J86: 52 | K86: 1 | L86: 100 | M86: 101 | N86: 0.84 | O86: 124.44 | P86: 162 | Q86: 1.14 | R86: 110.39 | S86: 353 | T86: 1.33 | U86: 112.65 | V86: 244 | W86: 1.4 | X86: 125.93 | Y86: 180 | Z86: 1.14 | AA86: 109.3 | AB86: 120 | AC86: 0.77 | AD86: 130.77 | AE86: 152 | AF86: 1.25 | AG86: 108.22 | AH86: 81 | AI86: 1.41 | AJ86: 118.92 | AK86: 127 | AL86: 1.06 | AM86: 135.19 | AN86: 162 | AO86: 1.14 | AP86: 107.69
C87: 남 | D87: 1051 | E87: 1.26 | G87: 119 | H87: 1.75 | J87: 26 | K87: 0.96 | M87: 56 | N87: 0.92 | P87: 85 | Q87: 1.23 | S87: 187 | T87: 1.42 | V87: 136 | W87: 1.48 | Y87: 94 | Z87: 1.16 | AB87: 68 | AC87: 0.85 | AE87: 79 | AF87: 1.21 | AH87: 44 | AI87: 1.38 | AK87: 73 | AL87: 1.3 | AN87: 84 | AO87: 1.23
C88: 여 | D88: 871 | E88: 1.08 | G88: 69 | H88: 1.11 | J88: 26 | K88: 1.05 | M88: 45 | N88: 0.76 | P88: 77 | Q88: 1.07 | S88: 166 | T88: 1.24 | V88: 108 | W88: 1.31 | Y88: 86 | Z88: 1.12 | AB88: 52 | AC88: 0.68 | AE88: 73 | AF88: 1.28 | AH88: 37 | AI88: 1.45 | AK88: 54 | AL88: 0.84 | AN88: 78 | AO88: 1.07
B89: 26세 | C89: 계 | D89: 1954 | E89: 1.19 | F89: 119.3 | G89: 168 | H89: 1.29 | I89: 115.38 | J89: 60 | K89: 1.16 | L89: 150 | M89: 109 | N89: 0.91 | O89: 118 | P89: 166 | Q89: 1.17 | R89: 112.82 | S89: 313 | T89: 1.18 | U89: 93.21 | V89: 259 | W89: 1.49 | X89: 103.94 | Y89: 195 | Z89: 1.23 | AA89: 124.14 | AB89: 144 | AC89: 0.92 | AD89: 111.76 | AE89: 178 | AF89: 1.46 | AG89: 150.7 | AH89: 105 | AI89: 1.83 | AJ89: 169.23 | AK89: 110 | AL89: 0.92 | AM89: 111.54 | AN89: 147 | AO89: 1.04 | AP89: 167.27
C90: 남 | D90: 1063 | E90: 1.28 | G90: 90 | H90: 1.33 | J90: 36 | K90: 1.33 | M90: 59 | N90: 0.97 | P90: 88 | Q90: 1.27 | S90: 151 | T90: 1.14 | V90: 132 | W90: 1.44 | Y90: 108 | Z90: 1.33 | AB90: 76 | AC90: 0.95 | AE90: 107 | AF90: 1.64 | AH90: 66 | AI90: 2.08 | AK90: 58 | AL90: 1.03 | AN90: 92 | AO90: 1.35
C91: 여 | D91: 891 | E91: 1.1 | G91: 78 | H91: 1.26 | J91: 24 | K91: 0.97 | M91: 50 | N91: 0.85 | P91: 78 | Q91: 1.08 | S91: 162 | T91: 1.21 | V91: 127 | W91: 1.54 | Y91: 87 | Z91: 1.13 | AB91: 68 | AC91: 0.89 | AE91: 71 | AF91: 1.25 | AH91: 39 | AI91: 1.53 | AK91: 52 | AL91: 0.81 | AN91: 55 | AO91: 0.75
B92: 27세 | C92: 계 | D92: 1993 | E92: 1.22 | F92: 133.1 | G92: 137 | H92: 1.05 | I92: 149.09 | J92: 51 | K92: 0.99 | L92: 142.86 | M92: 120 | N92: 1 | O92: 135.29 | P92: 156 | Q92: 1.1 | R92: 151.61 | S92: 316 | T92: 1.19 | U92: 116.44 | V92: 240 | W92: 1.38 | X92: 108.7 | Y92: 202 | Z92: 1.28 | AA92: 137.65 | AB92: 168 | AC92: 1.08 | AD92: 124 | AE92: 217 | AF92: 1.78 | AG92: 135.87 | AH92: 117 | AI92: 2.04 | AJ92: 200 | AK92: 123 | AL92: 1.02 | AM92: 119.64 | AN92: 146 | AO92: 1.03 | AP92: 151.72
C93: 남 | D93: 1138 | E93: 1.37 | G93: 82 | H93: 1.21 | J93: 30 | K93: 1.11 | M93: 69 | N93: 1.13 | P93: 94 | Q93: 1.36 | S93: 170 | T93: 1.29 | V93: 125 | W93: 1.36 | Y93: 117 | Z93: 1.44 | AB93: 93 | AC93: 1.17 | AE93: 125 | AF93: 1.92 | AH93: 78 | AI93: 2.45 | AK93: 67 | AL93: 1.19 | AN93: 88 | AO93: 1.29
C94: 여 | D94: 855 | E94: 1.06 | G94: 55 | H94: 0.89 | J94: 21 | K94: 0.85 | M94: 51 | N94: 0.87 | P94: 62 | Q94: 0.86 | S94: 146 | T94: 1.09 | V94: 115 | W94: 1.39 | Y94: 85 | Z94: 1.1 | AB94: 75 | AC94: 0.98 | AE94: 92 | AF94: 1.62 | AH94: 39 | AI94: 1.53 | AK94: 56 | AL94: 0.88 | AN94: 58 | AO94: 0.79
B95: 28세 | C95: 계 | D95: 2059 | E95: 1.26 | F95: 124.29 | G95: 157 | H95: 1.21 | I95: 96.25 | J95: 56 | K95: 1.08 | L95: 69.7 | M95: 137 | N95: 1.14 | O95: 101.47 | P95: 159 | Q95: 1.12 | R95: 133.82 | S95: 303 | T95: 1.14 | U95: 124.44 | V95: 229 | W95: 1.32 | X95: 138.54 | Y95: 212 | Z95: 1.34 | AA95: 116.33 | AB95: 176 | AC95: 1.13 | AD95: 109.52 | AE95: 216 | AF95: 1.77 | AG95: 151.16 | AH95: 116 | AI95: 2.02 | AJ95: 169.77 | AK95: 143 | AL95: 1.19 | AM95: 107.25 | AN95: 155 | AO95: 1.1 | AP95: 167.24
C96: 남 | D96: 1141 | E96: 1.37 | G96: 77 | H96: 1.14 | J96: 23 | K96: 0.85 | M96: 69 | N96: 1.13 | P96: 91 | Q96: 1.31 | S96: 168 | T96: 1.27 | V96: 133 | W96: 1.45 | Y96: 114 | Z96: 1.41 | AB96: 92 | AC96: 1.15 | AE96: 130 | AF96: 2 | AH96: 73 | AI96: 2.3 | AK96: 74 | AL96: 1.32 | AN96: 97 | AO96: 1.42
C97: 여 | D97: 918 | E97: 1.14 | G97: 80 | H97: 1.29 | J97: 33 | K97: 1.33 | M97: 68 | N97: 1.15 | P97: 68 | Q97: 0.94 | S97: 135 | T97: 1.01 | V97: 96 | W97: 1.16 | Y97: 98 | Z97: 1.27 | AB97: 84 | AC97: 1.1 | AE97: 86 | AF97: 1.51 | AH97: 43 | AI97: 1.68 | AK97: 69 | AL97: 1.08 | AN97: 58 | AO97: 0.79
B98: 29세 | C98: 계 | D98: 2191 | E98: 1.34 | F98: 119.32 | G98: 140 | H98: 1.08 | I98: 129.51 | J98: 55 | K98: 1.06 | L98: 77.42 | M98: 132 | N98: 1.1 | O98: 112.9 | P98: 178 | Q98: 1.26 | R98: 104.6 | S98: 318 | T98: 1.19 | U98: 101.27 | V98: 293 | W98: 1.68 | X98: 128.91 | Y98: 274 | Z98: 1.73 | AA98: 120.97 | AB98: 196 | AC98: 1.26 | AD98: 122.73 | AE98: 194 | AF98: 1.59 | AG98: 181.16 | AH98: 102 | AI98: 1.78 | AJ98: 137.21 | AK98: 152 | AL98: 1.27 | AM98: 108.22 | AN98: 157 | AO98: 1.11 | AP98: 109.33
C99: 남 | D99: 1192 | E99: 1.43 | G99: 79 | H99: 1.17 | J99: 24 | K99: 0.89 | M99: 70 | N99: 1.15 | P99: 91 | Q99: 1.31 | S99: 160 | T99: 1.21 | V99: 165 | W99: 1.8 | Y99: 150 | Z99: 1.85 | AB99: 108 | AC99: 1.35 | AE99: 125 | AF99: 1.92 | AH99: 59 | AI99: 1.86 | AK99: 79 | AL99: 1.41 | AN99: 82 | AO99: 1.2
C100: 여 | D100: 999 | E100: 1.24 | G100: 61 | H100: 0.98 | J100: 31 | K100: 1.25 | M100: 62 | N100: 1.05 | P100: 87 | Q100: 1.2 | S100: 158 | T100: 1.18 | V100: 128 | W100: 1.55 | Y100: 124 | Z100: 1.61 | AB100: 88 | AC100: 1.16 | AE100: 69 | AF100: 1.21 | AH100: 43 | AI100: 1.68 | AK100: 73 | AL100: 1.14 | AN100: 75 | AO100: 1.02
B101: 30세 | C101: 계 | D101: 2157 | E101: 1.32 | F101: 126.34 | G101: 159 | H101: 1.22 | I101: 130.43 | J101: 56 | K101: 1.08 | L101: 124 | M101: 153 | N101: 1.28 | O101: 93.67 | P101: 172 | Q101: 1.22 | R101: 120.51 | S101: 328 | T101: 1.23 | U101: 127.78 | V101: 262 | W101: 1.5 | X101: 154.37 | Y101: 233 | Z101: 1.47 | AA101: 124.04 | AB101: 223 | AC101: 1.43 | AD101: 99.11 | AE101: 185 | AF101: 1.52 | AG101: 150 | AH101: 94 | AI101: 1.64 | AJ101: 203.23 | AK101: 145 | AL101: 1.21 | AM101: 119.7 | AN101: 147 | AO101: 1.04 | AP101: 116.18
C102: 남 | D102: 1204 | E102: 1.45 | G102: 90 | H102: 1.33 | J102: 31 | K102: 1.15 | M102: 74 | N102: 1.21 | P102: 94 | Q102: 1.36 | S102: 184 | T102: 1.39 | V102: 159 | W102: 1.74 | Y102: 129 | Z102: 1.59 | AB102: 111 | AC102: 1.39 | AE102: 111 | AF102: 1.7 | AH102: 63 | AI102: 1.98 | AK102: 79 | AL102: 1.41 | AN102: 79 | AO102: 1.16
C103: 여 | D103: 953 | E103: 1.18 | G103: 69 | H103: 1.11 | J103: 25 | K103: 1.01 | M103: 79 | N103: 1.34 | P103: 78 | Q103: 1.08 | S103: 144 | T103: 1.07 | V103: 103 | W103: 1.25 | Y103: 104 | Z103: 1.35 | AB103: 112 | AC103: 1.47 | AE103: 74 | AF103: 1.3 | AH103: 31 | AI103: 1.21 | AK103: 66 | AL103: 1.03 | AN103: 68 | AO103: 0.93
B104: 31세 | C104: 계 | D104: 2108 | E104: 1.29 | F104: 133.44 | G104: 134 | H104: 1.03 | I104: 173.47 | J104: 64 | K104: 1.24 | L104: 166.67 | M104: 143 | N104: 1.19 | O104: 146.55 | P104: 149 | Q104: 1.05 | R104: 122.39 | S104: 337 | T104: 1.27 | U104: 111.95 | V104: 244 | W104: 1.4 | X104: 148.98 | Y104: 257 | Z104: 1.63 | AA104: 137.96 | AB104: 223 | AC104: 1.43 | AD104: 116.5 | AE104: 185 | AF104: 1.52 | AG104: 176.12 | AH104: 88 | AI104: 1.53 | AJ104: 125.64 | AK104: 156 | AL104: 1.3 | AM104: 119.72 | AN104: 128 | AO104: 0.9 | AP104: 113.33
C105: 남 | D105: 1205 | E105: 1.45 | G105: 85 | H105: 1.25 | J105: 40 | K105: 1.48 | M105: 85 | N105: 1.4 | P105: 82 | Q105: 1.18 | S105: 178 | T105: 1.35 | V105: 146 | W105: 1.59 | Y105: 149 | Z105: 1.84 | AB105: 120 | AC105: 1.51 | AE105: 118 | AF105: 1.81 | AH105: 49 | AI105: 1.54 | AK105: 85 | AL105: 1.52 | AN105: 68 | AO105: 1
C106: 여 | D106: 903 | E106: 1.12 | G106: 49 | H106: 0.79 | J106: 24 | K106: 0.97 | M106: 58 | N106: 0.98 | P106: 67 | Q106: 0.93 | S106: 159 | T106: 1.18 | V106: 98 | W106: 1.19 | Y106: 108 | Z106: 1.4 | AB106: 103 | AC106: 1.35 | AE106: 67 | AF106: 1.18 | AH106: 39 | AI106: 1.53 | AK106: 71 | AL106: 1.11 | AN106: 60 | AO106: 0.82
B107: 32세 | C107: 계 | D107: 2136 | E107: 1.3 | F107: 120.21 | G107: 155 | H107: 1.19 | I107: 131.34 | J107: 44 | K107: 0.85 | L107: 109.52 | M107: 147 | N107: 1.23 | O107: 116.18 | P107: 143 | Q107: 1.01 | R107: 126.98 | S107: 312 | T107: 1.17 | U107: 110.81 | V107: 243 | W107: 1.4 | X107: 138.24 | Y107: 276 | Z107: 1.75 | AA107: 113.95 | AB107: 242 | AC107: 1.55 | AD107: 92.06 | AE107: 184 | AF107: 1.51 | AG107: 178.79 | AH107: 112 | AI107: 1.95 | AJ107: 166.67 | AK107: 152 | AL107: 1.27 | AM107: 92.41 | AN107: 126 | AO107: 0.89 | AP107: 113.56
C108: 남 | D108: 1166 | E108: 1.4 | G108: 88 | H108: 1.3 | J108: 23 | K108: 0.85 | M108: 79 | N108: 1.3 | P108: 80 | Q108: 1.15 | S108: 164 | T108: 1.24 | V108: 141 | W108: 1.54 | Y108: 147 | Z108: 1.81 | AB108: 116 | AC108: 1.46 | AE108: 118 | AF108: 1.81 | AH108: 70 | AI108: 2.2 | AK108: 73 | AL108: 1.3 | AN108: 67 | AO108: 0.98
C109: 여 | D109: 970 | E109: 1.2 | G109: 67 | H109: 1.08 | J109: 21 | K109: 0.85 | M109: 68 | N109: 1.15 | P109: 63 | Q109: 0.87 | S109: 148 | T109: 1.1 | V109: 102 | W109: 1.24 | Y109: 129 | Z109: 1.68 | AB109: 126 | AC109: 1.65 | AE109: 66 | AF109: 1.16 | AH109: 42 | AI109: 1.64 | AK109: 79 | AL109: 1.24 | AN109: 59 | AO109: 0.81
B110: 33세 | C110: 계 | D110: 2117 | E110: 1.29 | F110: 131.62 | G110: 158 | H110: 1.22 | I110: 135.82 | J110: 57 | K110: 1.1 | L110: 128 | M110: 175 | N110: 1.46 | O110: 150 | P110: 140 | Q110: 0.99 | R110: 122.22 | S110: 320 | T110: 1.2 | U110: 106.45 | V110: 203 | W110: 1.17 | X110: 181.94 | Y110: 271 | Z110: 1.71 | AA110: 127.73 | AB110: 221 | AC110: 1.42 | AD110: 116.67 | AE110: 167 | AF110: 1.37 | AG110: 178.33 | AH110: 88 | AI110: 1.53 | AJ110: 158.82 | AK110: 159 | AL110: 1.32 | AM110: 101.27 | AN110: 158 | AO110: 1.12 | AP110: 132.35
C111: 남 | D111: 1203 | E111: 1.45 | G111: 91 | H111: 1.34 | J111: 32 | K111: 1.18 | M111: 105 | N111: 1.72 | P111: 77 | Q111: 1.11 | S111: 165 | T111: 1.25 | V111: 131 | W111: 1.43 | Y111: 152 | Z111: 1.87 | AB111: 119 | AC111: 1.49 | AE111: 107 | AF111: 1.64 | AH111: 54 | AI111: 1.7 | AK111: 80 | AL111: 1.43 | AN111: 90 | AO111: 1.32
C112: 여 | D112: 914 | E112: 1.13 | G112: 67 | H112: 1.08 | J112: 25 | K112: 1.01 | M112: 70 | N112: 1.19 | P112: 63 | Q112: 0.87 | S112: 155 | T112: 1.15 | V112: 72 | W112: 0.87 | Y112: 119 | Z112: 1.55 | AB112: 102 | AC112: 1.34 | AE112: 60 | AF112: 1.06 | AH112: 34 | AI112: 1.33 | AK112: 79 | AL112: 1.24 | AN112: 68 | AO112: 0.93
B113: 34세 | C113: 계 | D113: 2100 | E113: 1.28 | F113: 130.77 | G113: 136 | H113: 1.05 | I113: 189.36 | J113: 68 | K113: 1.31 | L113: 151.85 | M113: 154 | N113: 1.28 | O113: 129.85 | P113: 128 | Q113: 0.9 | R113: 197.67 | S113: 317 | T113: 1.19 | U113: 108.55 | V113: 219 | W113: 1.26 | X113: 138.04 | Y113: 277 | Z113: 1.75 | AA113: 147.32 | AB113: 251 | AC113: 1.61 | AD113: 100.8 | AE113: 176 | AF113: 1.44 | AG113: 170.77 | AH113: 79 | AI113: 1.38 | AJ113: 163.33 | AK113: 166 | AL113: 1.38 | AM113: 90.8 | AN113: 129 | AO113: 0.91 | AP113: 104.76
C114: 남 | D114: 1190 | E114: 1.43 | G114: 89 | H114: 1.31 | J114: 41 | K114: 1.52 | M114: 87 | N114: 1.43 | P114: 85 | Q114: 1.23 | S114: 165 | T114: 1.25 | V114: 127 | W114: 1.39 | Y114: 165 | Z114: 2.04 | AB114: 126 | AC114: 1.58 | AE114: 111 | AF114: 1.7 | AH114: 49 | AI114: 1.54 | AK114: 79 | AL114: 1.41 | AN114: 66 | AO114: 0.97
C115: 여 | D115: 910 | E115: 1.13 | G115: 47 | H115: 0.76 | J115: 27 | K115: 1.09 | M115: 67 | N115: 1.14 | P115: 43 | Q115: 0.6 | S115: 152 | T115: 1.13 | V115: 92 | W115: 1.12 | Y115: 112 | Z115: 1.46 | AB115: 125 | AC115: 1.64 | AE115: 65 | AF115: 1.14 | AH115: 30 | AI115: 1.17 | AK115: 87 | AL115: 1.36 | AN115: 63 | AO115: 0.86
B116: 35세 | C116: 계 | D116: 1888 | E116: 1.15 | F116: 126.38 | G116: 96 | H116: 0.74 | I116: 146.15 | J116: 60 | K116: 1.16 | L116: 215.79 | M116: 140 | N116: 1.17 | O116: 137.29 | P116: 129 | Q116: 0.91 | R116: 122.41 | S116: 284 | T116: 1.07 | U116: 86.84 | V116: 198 | W116: 1.14 | X116: 178.87 | Y116: 252 | Z116: 1.59 | AA116: 119.13 | AB116: 240 | AC116: 1.54 | AD116: 105.13 | AE116: 138 | AF116: 1.13 | AG116: 187.5 | AH116: 83 | AI116: 1.45 | AJ116: 260.87 | AK116: 145 | AL116: 1.21 | AM116: 107.14 | AN116: 123 | AO116: 0.87 | AP116: 95.24
C117: 남 | D117: 1054 | E117: 1.27 | G117: 57 | H117: 0.84 | J117: 41 | K117: 1.52 | M117: 81 | N117: 1.33 | P117: 71 | Q117: 1.02 | S117: 132 | T117: 1 | V117: 127 | W117: 1.39 | Y117: 137 | Z117: 1.69 | AB117: 123 | AC117: 1.54 | AE117: 90 | AF117: 1.38 | AH117: 60 | AI117: 1.89 | AK117: 75 | AL117: 1.34 | AN117: 60 | AO117: 0.88
C118: 여 | D118: 834 | E118: 1.03 | G118: 39 | H118: 0.63 | J118: 19 | K118: 0.77 | M118: 59 | N118: 1 | P118: 58 | Q118: 0.8 | S118: 152 | T118: 1.13 | V118: 71 | W118: 0.86 | Y118: 115 | Z118: 1.49 | AB118: 117 | AC118: 1.54 | AE118: 48 | AF118: 0.84 | AH118: 23 | AI118: 0.9 | AK118: 70 | AL118: 1.09 | AN118: 63 | AO118: 0.86
B119: 36세 | C119: 계 | D119: 1757 | E119: 1.07 | F119: 133.02 | G119: 94 | H119: 0.72 | I119: 203.23 | J119: 56 | K119: 1.08 | L119: 211.11 | M119: 136 | N119: 1.13 | O119: 138.6 | P119: 108 | Q119: 0.76 | R119: 129.79 | S119: 267 | T119: 1 | U119: 110.24 | V119: 149 | W119: 0.86 | X119: 166.07 | Y119: 224 | Z119: 1.42 | AA119: 119.61 | AB119: 244 | AC119: 1.57 | AD119: 98.37 | AE119: 128 | AF119: 1.05 | AG119: 190.91 | AH119: 100 | AI119: 1.74 | AJ119: 203.03 | AK119: 127 | AL119: 1.06 | AM119: 108.2 | AN119: 124 | AO119: 0.88 | AP119: 125.45
C120: 남 | D120: 1003 | E120: 1.21 | G120: 63 | H120: 0.93 | J120: 38 | K120: 1.4 | M120: 79 | N120: 1.3 | P120: 61 | Q120: 0.88 | S120: 140 | T120: 1.06 | V120: 93 | W120: 1.01 | Y120: 122 | Z120: 1.5 | AB120: 121 | AC120: 1.52 | AE120: 84 | AF120: 1.29 | AH120: 67 | AI120: 2.11 | AK120: 66 | AL120: 1.18 | AN120: 69 | AO120: 1.01
C121: 여 | D121: 754 | E121: 0.93 | G121: 31 | H121: 0.5 | J121: 18 | K121: 0.73 | M121: 57 | N121: 0.97 | P121: 47 | Q121: 0.65 | S121: 127 | T121: 0.95 | V121: 56 | W121: 0.68 | Y121: 102 | Z121: 1.33 | AB121: 123 | AC121: 1.61 | AE121: 44 | AF121: 0.77 | AH121: 33 | AI121: 1.29 | AK121: 61 | AL121: 0.95 | AN121: 55 | AO121: 0.75
B122: 37세 | C122: 계 | D122: 1704 | E122: 1.04 | F122: 135.03 | G122: 111 | H122: 0.85 | I122: 136.17 | J122: 50 | K122: 0.97 | L122: 92.31 | M122: 128 | N122: 1.07 | O122: 146.15 | P122: 114 | Q122: 0.81 | R122: 111.11 | S122: 249 | T122: 0.93 | U122: 112.82 | V122: 171 | W122: 0.98 | X122: 180.33 | Y122: 220 | Z122: 1.39 | AA122: 139.13 | AB122: 210 | AC122: 1.35 | AD122: 141.38 | AE122: 132 | AF122: 1.08 | AG122: 175 | AH122: 74 | AI122: 1.29 | AJ122: 196 | AK122: 115 | AL122: 0.96 | AM122: 121.15 | AN122: 130 | AO122: 0.92 | AP122: 103.13
C123: 남 | D123: 979 | E123: 1.18 | G123: 64 | H123: 0.94 | J123: 24 | K123: 0.89 | M123: 76 | N123: 1.25 | P123: 60 | Q123: 0.87 | S123: 132 | T123: 1 | V123: 110 | W123: 1.2 | Y123: 128 | Z123: 1.58 | AB123: 123 | AC123: 1.54 | AE123: 84 | AF123: 1.29 | AH123: 49 | AI123: 1.54 | AK123: 63 | AL123: 1.12 | AN123: 66 | AO123: 0.97
C124: 여 | D124: 725 | E124: 0.9 | G124: 47 | H124: 0.76 | J124: 26 | K124: 1.05 | M124: 52 | N124: 0.88 | P124: 54 | Q124: 0.75 | S124: 117 | T124: 0.87 | V124: 61 | W124: 0.74 | Y124: 92 | Z124: 1.2 | AB124: 87 | AC124: 1.14 | AE124: 48 | AF124: 0.84 | AH124: 25 | AI124: 0.98 | AK124: 52 | AL124: 0.81 | AN124: 64 | AO124: 0.87
B125: 38세 | C125: 계 | D125: 1661 | E125: 1.01 | F125: 121.76 | G125: 117 | H125: 0.9 | I125: 105.26 | J125: 54 | K125: 1.04 | L125: 125 | M125: 121 | N125: 1.01 | O125: 124.07 | P125: 103 | Q125: 0.73 | R125: 98.08 | S125: 275 | T125: 1.03 | U125: 113.18 | V125: 149 | W125: 0.86 | X125: 112.86 | Y125: 187 | Z125: 1.18 | AA125: 146.05 | AB125: 232 | AC125: 1.49 | AD125: 112.84 | AE125: 124 | AF125: 1.02 | AG125: 163.83 | AH125: 66 | AI125: 1.15 | AJ125: 186.96 | AK125: 130 | AL125: 1.08 | AM125: 124.14 | AN125: 103 | AO125: 0.73 | AP125: 106
C126: 남 | D126: 912 | E126: 1.1 | G126: 60 | H126: 0.88 | J126: 30 | K126: 1.11 | M126: 67 | N126: 1.1 | P126: 51 | Q126: 0.74 | S126: 146 | T126: 1.11 | V126: 79 | W126: 0.86 | Y126: 111 | Z126: 1.37 | AB126: 123 | AC126: 1.54 | AE126: 77 | AF126: 1.18 | AH126: 43 | AI126: 1.35 | AK126: 72 | AL126: 1.28 | AN126: 53 | AO126: 0.78
C127: 여 | D127: 749 | E127: 0.93 | G127: 57 | H127: 0.92 | J127: 24 | K127: 0.97 | M127: 54 | N127: 0.92 | P127: 52 | Q127: 0.72 | S127: 129 | T127: 0.96 | V127: 70 | W127: 0.85 | Y127: 76 | Z127: 0.99 | AB127: 109 | AC127: 1.43 | AE127: 47 | AF127: 0.83 | AH127: 23 | AI127: 0.9 | AK127: 58 | AL127: 0.91 | AN127: 50 | AO127: 0.68
B128: 39세 | C128: 계 | D128: 1690 | E128: 1.03 | F128: 131.19 | G128: 117 | H128: 0.9 | I128: 185.37 | J128: 39 | K128: 0.75 | L128: 160 | M128: 124 | N128: 1.03 | O128: 100 | P128: 89 | Q128: 0.63 | R128: 140.54 | S128: 290 | T128: 1.09 | U128: 118.05 | V128: 163 | W128: 0.94 | X128: 162.9 | Y128: 202 | Z128: 1.28 | AA128: 117.2 | AB128: 243 | AC128: 1.56 | AD128: 115.04 | AE128: 125 | AF128: 1.02 | AG128: 140.38 | AH128: 62 | AI128: 1.08 | AJ128: 264.71 | AK128: 121 | AL128: 1.01 | AM128: 137.25 | AN128: 115 | AO128: 0.81 | AP128: 109.09
C129: 남 | D129: 959 | E129: 1.15 | G129: 76 | H129: 1.12 | J129: 24 | K129: 0.89 | M129: 62 | N129: 1.02 | P129: 52 | Q129: 0.75 | S129: 157 | T129: 1.19 | V129: 101 | W129: 1.1 | Y129: 109 | Z129: 1.34 | AB129: 130 | AC129: 1.63 | AE129: 73 | AF129: 1.12 | AH129: 45 | AI129: 1.42 | AK129: 70 | AL129: 1.25 | AN129: 60 | AO129: 0.88
C130: 여 | D130: 731 | E130: 0.91 | G130: 41 | H130: 0.66 | J130: 15 | K130: 0.61 | M130: 62 | N130: 1.05 | P130: 37 | Q130: 0.51 | S130: 133 | T130: 0.99 | V130: 62 | W130: 0.75 | Y130: 93 | Z130: 1.21 | AB130: 113 | AC130: 1.48 | AE130: 52 | AF130: 0.91 | AH130: 17 | AI130: 0.67 | AK130: 51 | AL130: 0.8 | AN130: 55 | AO130: 0.75
B131: 40세 | C131: 계 | D131: 1691 | E131: 1.03 | F131: 117.35 | G131: 109 | H131: 0.84 | I131: 136.96 | J131: 55 | K131: 1.06 | L131: 77.42 | M131: 106 | N131: 0.88 | O131: 186.49 | P131: 104 | Q131: 0.73 | R131: 103.92 | S131: 252 | T131: 0.95 | U131: 113.56 | V131: 181 | W131: 1.04 | X131: 144.59 | Y131: 188 | Z131: 1.19 | AA131: 106.59 | AB131: 273 | AC131: 1.75 | AD131: 90.91 | AE131: 116 | AF131: 0.95 | AG131: 123.08 | AH131: 69 | AI131: 1.2 | AJ131: 122.58 | AK131: 135 | AL131: 1.12 | AM131: 104.55 | AN131: 103 | AO131: 0.73 | AP131: 171.05
C132: 남 | D132: 913 | E132: 1.1 | G132: 63 | H132: 0.93 | J132: 24 | K132: 0.89 | M132: 69 | N132: 1.13 | P132: 53 | Q132: 0.76 | S132: 134 | T132: 1.01 | V132: 107 | W132: 1.17 | Y132: 97 | Z132: 1.2 | AB132: 130 | AC132: 1.63 | AE132: 64 | AF132: 0.98 | AH132: 38 | AI132: 1.2 | AK132: 69 | AL132: 1.23 | AN132: 65 | AO132: 0.95
C133: 여 | D133: 778 | E133: 0.96 | G133: 46 | H133: 0.74 | J133: 31 | K133: 1.25 | M133: 37 | N133: 0.63 | P133: 51 | Q133: 0.71 | S133: 118 | T133: 0.88 | V133: 74 | W133: 0.9 | Y133: 91 | Z133: 1.18 | AB133: 143 | AC133: 1.88 | AE133: 52 | AF133: 0.91 | AH133: 31 | AI133: 1.21 | AK133: 66 | AL133: 1.03 | AN133: 38 | AO133: 0.52
B134: 41세 | C134: 계 | D134: 1667 | E134: 1.02 | F134: 121.97 | G134: 103 | H134: 0.79 | I134: 157.5 | J134: 53 | K134: 1.02 | L134: 103.85 | M134: 123 | N134: 1.03 | O134: 108.47 | P134: 94 | Q134: 0.66 | R134: 168.57 | S134: 288 | T134: 1.08 | U134: 116.54 | V134: 125 | W134: 0.72 | X134: 115.52 | Y134: 189 | Z134: 1.2 | AA134: 142.31 | AB134: 256 | AC134: 1.64 | AD134: 103.17 | AE134: 114 | AF134: 0.93 | AG134: 147.83 | AH134: 74 | AI134: 1.29 | AJ134: 208.33 | AK134: 122 | AL134: 1.02 | AM134: 114.04 | AN134: 126 | AO134: 0.89 | AP134: 82.61
C135: 남 | D135: 916 | E135: 1.1 | G135: 63 | H135: 0.93 | J135: 27 | K135: 1 | M135: 64 | N135: 1.05 | P135: 59 | Q135: 0.85 | S135: 155 | T135: 1.17 | V135: 67 | W135: 0.73 | Y135: 111 | Z135: 1.37 | AB135: 130 | AC135: 1.63 | AE135: 68 | AF135: 1.04 | AH135: 50 | AI135: 1.57 | AK135: 65 | AL135: 1.16 | AN135: 57 | AO135: 0.83
C136: 여 | D136: 751 | E136: 0.93 | G136: 40 | H136: 0.64 | J136: 26 | K136: 1.05 | M136: 59 | N136: 1 | P136: 35 | Q136: 0.48 | S136: 133 | T136: 0.99 | V136: 58 | W136: 0.7 | Y136: 78 | Z136: 1.01 | AB136: 126 | AC136: 1.65 | AE136: 46 | AF136: 0.81 | AH136: 24 | AI136: 0.94 | AK136: 57 | AL136: 0.89 | AN136: 69 | AO136: 0.94
B137: 42세 | C137: 계 | D137: 1810 | E137: 1.1 | F137: 117.29 | G137: 101 | H137: 0.78 | I137: 119.57 | J137: 57 | K137: 1.1 | L137: 72.73 | M137: 119 | N137: 0.99 | O137: 120.37 | P137: 115 | Q137: 0.81 | R137: 112.96 | S137: 322 | T137: 1.21 | U137: 106.41 | V137: 160 | W137: 0.92 | X137: 135.29 | Y137: 187 | Z137: 1.18 | AA137: 156.16 | AB137: 264 | AC137: 1.69 | AD137: 94.12 | AE137: 126 | AF137: 1.03 | AG137: 173.91 | AH137: 100 | AI137: 1.74 | AJ137: 163.16 | AK137: 128 | AL137: 1.07 | AM137: 103.17 | AN137: 131 | AO137: 0.93 | AP137: 98.48
C138: 남 | D138: 977 | E138: 1.18 | G138: 55 | H138: 0.81 | J138: 24 | K138: 0.89 | M138: 65 | N138: 1.07 | P138: 61 | Q138: 0.88 | S138: 166 | T138: 1.26 | V138: 92 | W138: 1 | Y138: 114 | Z138: 1.41 | AB138: 128 | AC138: 1.61 | AE138: 80 | AF138: 1.23 | AH138: 62 | AI138: 1.95 | AK138: 65 | AL138: 1.16 | AN138: 65 | AO138: 0.95
C139: 여 | D139: 833 | E139: 1.03 | G139: 46 | H139: 0.74 | J139: 33 | K139: 1.33 | M139: 54 | N139: 0.92 | P139: 54 | Q139: 0.75 | S139: 156 | T139: 1.16 | V139: 68 | W139: 0.82 | Y139: 73 | Z139: 0.95 | AB139: 136 | AC139: 1.79 | AE139: 46 | AF139: 0.81 | AH139: 38 | AI139: 1.49 | AK139: 63 | AL139: 0.99 | AN139: 66 | AO139: 0.9
B140: 43세 | C140: 계 | D140: 2033 | E140: 1.24 | F140: 115.82 | G140: 124 | H140: 0.95 | I140: 148 | J140: 80 | K140: 1.55 | L140: 110.53 | M140: 127 | N140: 1.06 | O140: 135.19 | P140: 147 | Q140: 1.04 | R140: 107.04 | S140: 367 | T140: 1.38 | U140: 89.18 | V140: 217 | W140: 1.25 | X140: 138.46 | Y140: 194 | Z140: 1.23 | AA140: 133.73 | AB140: 296 | AC140: 1.9 | AD140: 120.9 | AE140: 122 | AF140: 1 | AG140: 106.78 | AH140: 76 | AI140: 1.33 | AJ140: 130.3 | AK140: 121 | AL140: 1.01 | AM140: 116.07 | AN140: 162 | AO140: 1.14 | AP140: 105.06
C141: 남 | D141: 1091 | E141: 1.31 | G141: 74 | H141: 1.09 | J141: 42 | K141: 1.55 | M141: 73 | N141: 1.2 | P141: 76 | Q141: 1.1 | S141: 173 | T141: 1.31 | V141: 126 | W141: 1.38 | Y141: 111 | Z141: 1.37 | AB141: 162 | AC141: 2.03 | AE141: 63 | AF141: 0.97 | AH141: 43 | AI141: 1.35 | AK141: 65 | AL141: 1.16 | AN141: 83 | AO141: 1.22
C142: 여 | D142: 942 | E142: 1.17 | G142: 50 | H142: 0.81 | J142: 38 | K142: 1.54 | M142: 54 | N142: 0.92 | P142: 71 | Q142: 0.98 | S142: 194 | T142: 1.45 | V142: 91 | W142: 1.1 | Y142: 83 | Z142: 1.08 | AB142: 134 | AC142: 1.76 | AE142: 59 | AF142: 1.04 | AH142: 33 | AI142: 1.29 | AK142: 56 | AL142: 0.88 | AN142: 79 | AO142: 1.08
B143: 44세 | C143: 계 | D143: 2235 | E143: 1.36 | F143: 109.07 | G143: 141 | H143: 1.09 | I143: 138.98 | J143: 86 | K143: 1.66 | L143: 100 | M143: 146 | N143: 1.22 | O143: 121.21 | P143: 167 | Q143: 1.18 | R143: 111.39 | S143: 403 | T143: 1.51 | U143: 91 | V143: 209 | W143: 1.2 | X143: 102.91 | Y143: 208 | Z143: 1.32 | AA143: 101.94 | AB143: 318 | AC143: 2.04 | AD143: 114.86 | AE143: 149 | AF143: 1.22 | AG143: 148.33 | AH143: 80 | AI143: 1.4 | AJ143: 150 | AK143: 149 | AL143: 1.24 | AM143: 104.11 | AN143: 179 | AO143: 1.27 | AP143: 94.57
C144: 남 | D144: 1166 | E144: 1.4 | G144: 82 | H144: 1.21 | J144: 43 | K144: 1.59 | M144: 80 | N144: 1.31 | P144: 88 | Q144: 1.27 | S144: 192 | T144: 1.45 | V144: 106 | W144: 1.16 | Y144: 105 | Z144: 1.3 | AB144: 170 | AC144: 2.13 | AE144: 89 | AF144: 1.37 | AH144: 48 | AI144: 1.51 | AK144: 76 | AL144: 1.36 | AN144: 87 | AO144: 1.27
C145: 여 | D145: 1069 | E145: 1.32 | G145: 59 | H145: 0.95 | J145: 43 | K145: 1.74 | M145: 66 | N145: 1.12 | P145: 79 | Q145: 1.09 | S145: 211 | T145: 1.57 | V145: 103 | W145: 1.25 | Y145: 103 | Z145: 1.34 | AB145: 148 | AC145: 1.94 | AE145: 60 | AF145: 1.06 | AH145: 32 | AI145: 1.25 | AK145: 73 | AL145: 1.14 | AN145: 92 | AO145: 1.26
B146: 45세 | C146: 계 | D146: 2352 | E146: 1.44 | F146: 112.47 | G146: 136 | H146: 1.05 | I146: 115.87 | J146: 86 | K146: 1.66 | L146: 168.75 | M146: 155 | N146: 1.29 | O146: 103.95 | P146: 188 | Q146: 1.33 | R146: 91.84 | S146: 443 | T146: 1.66 | U146: 93.45 | V146: 243 | W146: 1.4 | X146: 155.79 | Y146: 199 | Z146: 1.26 | AA146: 155.13 | AB146: 290 | AC146: 1.86 | AD146: 118.05 | AE146: 163 | AF146: 1.34 | AG146: 98.78 | AH146: 112 | AI146: 1.95 | AJ146: 148.89 | AK146: 168 | AL146: 1.4 | AM146: 82.61 | AN146: 169 | AO146: 1.19 | AP146: 101.19
C147: 남 | D147: 1245 | E147: 1.5 | G147: 73 | H147: 1.08 | J147: 54 | K147: 2 | M147: 79 | N147: 1.3 | P147: 90 | Q147: 1.3 | S147: 214 | T147: 1.62 | V147: 148 | W147: 1.62 | Y147: 121 | Z147: 1.49 | AB147: 157 | AC147: 1.97 | AE147: 81 | AF147: 1.24 | AH147: 67 | AI147: 2.11 | AK147: 76 | AL147: 1.36 | AN147: 85 | AO147: 1.24
C148: 여 | D148: 1107 | E148: 1.37 | G148: 63 | H148: 1.01 | J148: 32 | K148: 1.29 | M148: 76 | N148: 1.29 | P148: 98 | Q148: 1.36 | S148: 229 | T148: 1.71 | V148: 95 | W148: 1.15 | Y148: 78 | Z148: 1.01 | AB148: 133 | AC148: 1.75 | AE148: 82 | AF148: 1.44 | AH148: 45 | AI148: 1.76 | AK148: 92 | AL148: 1.44 | AN148: 84 | AO148: 1.15
B149: 46세 | C149: 계 | D149: 2248 | E149: 1.37 | F149: 110.29 | G149: 150 | H149: 1.15 | I149: 111.27 | J149: 74 | K149: 1.43 | L149: 155.17 | M149: 151 | N149: 1.26 | O149: 106.85 | P149: 194 | Q149: 1.37 | R149: 100 | S149: 396 | T149: 1.49 | U149: 96.04 | V149: 234 | W149: 1.34 | X149: 143.75 | Y149: 181 | Z149: 1.15 | AA149: 135.06 | AB149: 316 | AC149: 2.03 | AD149: 119.44 | AE149: 145 | AF149: 1.19 | AG149: 95.95 | AH149: 104 | AI149: 1.81 | AJ149: 112.24 | AK149: 165 | AL149: 1.37 | AM149: 108.86 | AN149: 138 | AO149: 0.98 | AP149: 76.92
C150: 남 | D150: 1179 | E150: 1.42 | G150: 79 | H150: 1.17 | J150: 45 | K150: 1.66 | M150: 78 | N150: 1.28 | P150: 97 | Q150: 1.4 | S150: 194 | T150: 1.47 | V150: 138 | W150: 1.51 | Y150: 104 | Z150: 1.28 | AB150: 172 | AC150: 2.16 | AE150: 71 | AF150: 1.09 | AH150: 55 | AI150: 1.73 | AK150: 86 | AL150: 1.53 | AN150: 60 | AO150: 0.88
C151: 여 | D151: 1069 | E151: 1.32 | G151: 71 | H151: 1.14 | J151: 29 | K151: 1.17 | M151: 73 | N151: 1.24 | P151: 97 | Q151: 1.34 | S151: 202 | T151: 1.5 | V151: 96 | W151: 1.16 | Y151: 77 | Z151: 1 | AB151: 144 | AC151: 1.89 | AE151: 74 | AF151: 1.3 | AH151: 49 | AI151: 1.92 | AK151: 79 | AL151: 1.24 | AN151: 78 | AO151: 1.07
B152: 47세 | C152: 계 | D152: 2220 | E152: 1.36 | F152: 107.87 | G152: 160 | H152: 1.23 | I152: 116.22 | J152: 69 | K152: 1.33 | L152: 155.56 | M152: 122 | N152: 1.02 | O152: 121.82 | P152: 199 | Q152: 1.41 | R152: 95.1 | S152: 410 | T152: 1.54 | U152: 94.31 | V152: 250 | W152: 1.44 | X152: 98.41 | Y152: 184 | Z152: 1.16 | AA152: 106.74 | AB152: 246 | AC152: 1.58 | AD152: 136.54 | AE152: 146 | AF152: 1.2 | AG152: 102.78 | AH152: 95 | AI152: 1.66 | AJ152: 137.5 | AK152: 149 | AL152: 1.24 | AM152: 104.11 | AN152: 190 | AO152: 1.34 | AP152: 100
C153: 남 | D153: 1152 | E153: 1.39 | G153: 86 | H153: 1.27 | J153: 42 | K153: 1.55 | M153: 67 | N153: 1.1 | P153: 97 | Q153: 1.4 | S153: 199 | T153: 1.51 | V153: 124 | W153: 1.35 | Y153: 95 | Z153: 1.17 | AB153: 142 | AC153: 1.78 | AE153: 74 | AF153: 1.14 | AH153: 55 | AI153: 1.73 | AK153: 76 | AL153: 1.36 | AN153: 95 | AO153: 1.39
C154: 여 | D154: 1068 | E154: 1.32 | G154: 74 | H154: 1.19 | J154: 27 | K154: 1.09 | M154: 55 | N154: 0.93 | P154: 102 | Q154: 1.41 | S154: 211 | T154: 1.57 | V154: 126 | W154: 1.53 | Y154: 89 | Z154: 1.16 | AB154: 104 | AC154: 1.37 | AE154: 72 | AF154: 1.27 | AH154: 40 | AI154: 1.57 | AK154: 73 | AL154: 1.14 | AN154: 95 | AO154: 1.3
B155: 48세 | C155: 계 | D155: 2229 | E155: 1.36 | F155: 106.58 | G155: 142 | H155: 1.09 | I155: 136.67 | J155: 68 | K155: 1.31 | L155: 183.33 | M155: 150 | N155: 1.25 | O155: 117.39 | P155: 196 | Q155: 1.38 | R155: 110.75 | S155: 451 | T155: 1.69 | U155: 77.56 | V155: 235 | W155: 1.35 | X155: 121.7 | Y155: 203 | Z155: 1.28 | AA155: 89.72 | AB155: 243 | AC155: 1.56 | AD155: 109.48 | AE155: 163 | AF155: 1.34 | AG155: 117.33 | AH155: 94 | AI155: 1.64 | AJ155: 141.03 | AK155: 140 | AL155: 1.17 | AM155: 129.51 | AN155: 144 | AO155: 1.02 | AP155: 92
C156: 남 | D156: 1150 | E156: 1.38 | G156: 82 | H156: 1.21 | J156: 44 | K156: 1.63 | M156: 81 | N156: 1.33 | P156: 103 | Q156: 1.49 | S156: 197 | T156: 1.49 | V156: 129 | W156: 1.41 | Y156: 96 | Z156: 1.18 | AB156: 127 | AC156: 1.59 | AE156: 88 | AF156: 1.35 | AH156: 55 | AI156: 1.73 | AK156: 79 | AL156: 1.41 | AN156: 69 | AO156: 1.01
C157: 여 | D157: 1079 | E157: 1.34 | G157: 60 | H157: 0.97 | J157: 24 | K157: 0.97 | M157: 69 | N157: 1.17 | P157: 93 | Q157: 1.29 | S157: 254 | T157: 1.89 | V157: 106 | W157: 1.29 | Y157: 107 | Z157: 1.39 | AB157: 116 | AC157: 1.52 | AE157: 75 | AF157: 1.32 | AH157: 39 | AI157: 1.53 | AK157: 61 | AL157: 0.95 | AN157: 75 | AO157: 1.02
B158: 49세 | C158: 계 | D158: 2321 | E158: 1.42 | F158: 102.88 | G158: 174 | H158: 1.34 | I158: 148.57 | J158: 70 | K158: 1.35 | L158: 118.75 | M158: 155 | N158: 1.29 | O158: 154.1 | P158: 206 | Q158: 1.46 | R158: 83.93 | S158: 405 | T158: 1.52 | U158: 83.26 | V158: 245 | W158: 1.41 | X158: 145 | Y158: 203 | Z158: 1.28 | AA158: 107.14 | AB158: 274 | AC158: 1.76 | AD158: 126.45 | AE158: 160 | AF158: 1.31 | AG158: 102.53 | AH158: 100 | AI158: 1.74 | AJ158: 112.77 | AK158: 147 | AL158: 1.22 | AM158: 53.13 | AN158: 182 | AO158: 1.29 | AP158: 70.09
C159: 남 | D159: 1177 | E159: 1.42 | G159: 104 | H159: 1.53 | J159: 38 | K159: 1.4 | M159: 94 | N159: 1.54 | P159: 94 | Q159: 1.36 | S159: 184 | T159: 1.39 | V159: 145 | W159: 1.58 | Y159: 105 | Z159: 1.3 | AB159: 153 | AC159: 1.92 | AE159: 81 | AF159: 1.24 | AH159: 53 | AI159: 1.67 | AK159: 51 | AL159: 0.91 | AN159: 75 | AO159: 1.1
C160: 여 | D160: 1144 | E160: 1.42 | G160: 70 | H160: 1.13 | J160: 32 | K160: 1.29 | M160: 61 | N160: 1.04 | P160: 112 | Q160: 1.55 | S160: 221 | T160: 1.65 | V160: 100 | W160: 1.21 | Y160: 98 | Z160: 1.27 | AB160: 121 | AC160: 1.59 | AE160: 79 | AF160: 1.39 | AH160: 47 | AI160: 1.84 | AK160: 96 | AL160: 1.5 | AN160: 107 | AO160: 1.46
B161: 50세 | C161: 계 | D161: 2362 | E161: 1.44 | F161: 97.99 | G161: 162 | H161: 1.25 | I161: 113.16 | J161: 57 | K161: 1.1 | L161: 90 | M161: 156 | N161: 1.3 | O161: 100 | P161: 225 | Q161: 1.59 | R161: 112.26 | S161: 449 | T161: 1.69 | U161: 78.17 | V161: 256 | W161: 1.47 | X161: 115.13 | Y161: 235 | Z161: 1.49 | AA161: 74.07 | AB161: 194 | AC161: 1.24 | AD161: 110.87 | AE161: 185 | AF161: 1.52 | AG161: 90.72 | AH161: 93 | AI161: 1.62 | AJ161: 144.74 | AK161: 142 | AL161: 1.18 | AM161: 100 | AN161: 208 | AO161: 1.47 | AP161: 110.1
C162: 남 | D162: 1169 | E162: 1.41 | G162: 86 | H162: 1.27 | J162: 27 | K162: 1 | M162: 78 | N162: 1.28 | P162: 119 | Q162: 1.72 | S162: 197 | T162: 1.49 | V162: 137 | W162: 1.5 | Y162: 100 | Z162: 1.23 | AB162: 102 | AC162: 1.28 | AE162: 88 | AF162: 1.35 | AH162: 55 | AI162: 1.73 | AK162: 71 | AL162: 1.27 | AN162: 109 | AO162: 1.6
C163: 여 | D163: 1193 | E163: 1.48 | G163: 76 | H163: 1.22 | J163: 30 | K163: 1.21 | M163: 78 | N163: 1.32 | P163: 106 | Q163: 1.47 | S163: 252 | T163: 1.88 | V163: 119 | W163: 1.44 | Y163: 135 | Z163: 1.75 | AB163: 92 | AC163: 1.21 | AE163: 97 | AF163: 1.71 | AH163: 38 | AI163: 1.49 | AK163: 71 | AL163: 1.11 | AN163: 99 | AO163: 1.35
B164: 51세 | C164: 계 | D164: 2582 | E164: 1.58 | F164: 101.56 | G164: 168 | H164: 1.29 | I164: 112.66 | J164: 86 | K164: 1.66 | L164: 126.32 | M164: 166 | N164: 1.39 | O164: 107.5 | P164: 201 | Q164: 1.42 | R164: 87.85 | S164: 502 | T164: 1.88 | U164: 77.39 | V164: 296 | W164: 1.7 | X164: 120.9 | Y164: 244 | Z164: 1.54 | AA164: 106.78 | AB164: 235 | AC164: 1.51 | AD164: 121.7 | AE164: 209 | AF164: 1.71 | AG164: 129.67 | AH164: 94 | AI164: 1.64 | AJ164: 147.37 | AK164: 173 | AL164: 1.44 | AM164: 96.59 | AN164: 208 | AO164: 1.47 | AP164: 74.79
C165: 남 | D165: 1301 | E165: 1.57 | G165: 89 | H165: 1.31 | J165: 48 | K165: 1.77 | M165: 86 | N165: 1.41 | P165: 94 | Q165: 1.36 | S165: 219 | T165: 1.66 | V165: 162 | W165: 1.77 | Y165: 126 | Z165: 1.55 | AB165: 129 | AC165: 1.62 | AE165: 118 | AF165: 1.81 | AH165: 56 | AI165: 1.76 | AK165: 85 | AL165: 1.52 | AN165: 89 | AO165: 1.3
C166: 여 | D166: 1281 | E166: 1.59 | G166: 79 | H166: 1.27 | J166: 38 | K166: 1.54 | M166: 80 | N166: 1.36 | P166: 107 | Q166: 1.48 | S166: 283 | T166: 2.11 | V166: 134 | W166: 1.62 | Y166: 118 | Z166: 1.53 | AB166: 106 | AC166: 1.39 | AE166: 91 | AF166: 1.6 | AH166: 38 | AI166: 1.49 | AK166: 88 | AL166: 1.38 | AN166: 119 | AO166: 1.63
B167: 52세 | C167: 계 | D167: 2998 | E167: 1.83 | F167: 103.67 | G167: 194 | H167: 1.49 | I167: 142.5 | J167: 88 | K167: 1.7 | L167: 137.84 | M167: 218 | N167: 1.82 | O167: 109.62 | P167: 299 | Q167: 2.11 | R167: 91.67 | S167: 555 | T167: 2.08 | U167: 90.72 | V167: 340 | W167: 1.95 | X167: 115.19 | Y167: 245 | Z167: 1.55 | AA167: 135.58 | AB167: 252 | AC167: 1.62 | AD167: 83.94 | AE167: 223 | AF167: 1.83 | AG167: 134.74 | AH167: 113 | AI167: 1.97 | AJ167: 140.43 | AK167: 191 | AL167: 1.59 | AM167: 98.96 | AN167: 280 | AO167: 1.98 | AP167: 67.66
C168: 남 | D168: 1526 | E168: 1.84 | G168: 114 | H168: 1.68 | J168: 51 | K168: 1.89 | M168: 114 | N168: 1.87 | P168: 143 | Q168: 2.06 | S168: 264 | T168: 2 | V168: 182 | W168: 1.99 | Y168: 141 | Z168: 1.74 | AB168: 115 | AC168: 1.44 | AE168: 128 | AF168: 1.97 | AH168: 66 | AI168: 2.08 | AK168: 95 | AL168: 1.69 | AN168: 113 | AO168: 1.65
C169: 여 | D169: 1472 | E169: 1.82 | G169: 80 | H169: 1.29 | J169: 37 | K169: 1.5 | M169: 104 | N169: 1.77 | P169: 156 | Q169: 2.16 | S169: 291 | T169: 2.17 | V169: 158 | W169: 1.92 | Y169: 104 | Z169: 1.35 | AB169: 137 | AC169: 1.8 | AE169: 95 | AF169: 1.67 | AH169: 47 | AI169: 1.84 | AK169: 96 | AL169: 1.5 | AN169: 167 | AO169: 2.28
B170: 53세 | C170: 계 | D170: 3105 | E170: 1.9 | F170: 99.29 | G170: 220 | H170: 1.69 | I170: 144.44 | J170: 92 | K170: 1.78 | L170: 135.9 | M170: 221 | N170: 1.84 | O170: 104.63 | P170: 316 | Q170: 2.23 | R170: 79.55 | S170: 594 | T170: 2.23 | U170: 80.55 | V170: 339 | W170: 1.95 | X170: 127.52 | Y170: 259 | Z170: 1.64 | AA170: 100.78 | AB170: 288 | AC170: 1.85 | AD170: 94.59 | AE170: 250 | AF170: 2.05 | AG170: 133.64 | AH170: 99 | AI170: 1.73 | AJ170: 141.46 | AK170: 182 | AL170: 1.52 | AM170: 78.43 | AN170: 245 | AO170: 1.73 | AP170: 75
C171: 남 | D171: 1547 | E171: 1.86 | G171: 130 | H171: 1.92 | J171: 53 | K171: 1.96 | M171: 113 | N171: 1.85 | P171: 140 | Q171: 2.02 | S171: 265 | T171: 2.01 | V171: 190 | W171: 2.07 | Y171: 130 | Z171: 1.6 | AB171: 140 | AC171: 1.76 | AE171: 143 | AF171: 2.2 | AH171: 58 | AI171: 1.82 | AK171: 80 | AL171: 1.43 | AN171: 105 | AO171: 1.54
C172: 여 | D172: 1558 | E172: 1.93 | G172: 90 | H172: 1.45 | J172: 39 | K172: 1.58 | M172: 108 | N172: 1.83 | P172: 176 | Q172: 2.44 | S172: 329 | T172: 2.45 | V172: 149 | W172: 1.81 | Y172: 129 | Z172: 1.68 | AB172: 148 | AC172: 1.94 | AE172: 107 | AF172: 1.88 | AH172: 41 | AI172: 1.6 | AK172: 102 | AL172: 1.59 | AN172: 140 | AO172: 1.91
B173: 54세 | C173: 계 | D173: 3012 | E173: 1.84 | F173: 99.73 | G173: 192 | H173: 1.48 | I173: 120.69 | J173: 116 | K173: 2.24 | L173: 141.67 | M173: 225 | N173: 1.88 | O173: 93.97 | P173: 279 | Q173: 1.97 | R173: 91.1 | S173: 621 | T173: 2.33 | U173: 85.37 | V173: 323 | W173: 1.86 | X173: 127.46 | Y173: 243 | Z173: 1.54 | AA173: 116.96 | AB173: 226 | AC173: 1.45 | AD173: 79.37 | AE173: 234 | AF173: 1.92 | AG173: 141.24 | AH173: 108 | AI173: 1.88 | AJ173: 120.41 | AK173: 179 | AL173: 1.49 | AM173: 80.81 | AN173: 266 | AO173: 1.88 | AP173: 76.16
C174: 남 | D174: 1504 | E174: 1.81 | G174: 105 | H174: 1.55 | J174: 68 | K174: 2.51 | M174: 109 | N174: 1.79 | P174: 133 | Q174: 1.92 | S174: 286 | T174: 2.17 | V174: 181 | W174: 1.98 | Y174: 131 | Z174: 1.62 | AB174: 100 | AC174: 1.25 | AE174: 137 | AF174: 2.1 | AH174: 59 | AI174: 1.86 | AK174: 80 | AL174: 1.43 | AN174: 115 | AO174: 1.68
C175: 여 | D175: 1508 | E175: 1.87 | G175: 87 | H175: 1.4 | J175: 48 | K175: 1.94 | M175: 116 | N175: 1.97 | P175: 146 | Q175: 2.02 | S175: 335 | T175: 2.5 | V175: 142 | W175: 1.72 | Y175: 112 | Z175: 1.46 | AB175: 126 | AC175: 1.65 | AE175: 97 | AF175: 1.71 | AH175: 49 | AI175: 1.92 | AK175: 99 | AL175: 1.55 | AN175: 151 | AO175: 2.06
B176: 55세 | C176: 계 | D176: 3424 | E176: 2.09 | F176: 102.13 | G176: 222 | H176: 1.71 | I176: 136.17 | J176: 102 | K176: 1.97 | L176: 121.74 | M176: 219 | N176: 1.83 | O176: 102.78 | P176: 323 | Q176: 2.28 | R176: 91.12 | S176: 626 | T176: 2.35 | U176: 84.66 | V176: 388 | W176: 2.23 | X176: 119.21 | Y176: 334 | Z176: 2.11 | AA176: 100 | AB176: 262 | AC176: 1.68 | AD176: 101.54 | AE176: 256 | AF176: 2.1 | AG176: 146.15 | AH176: 133 | AI176: 2.32 | AJ176: 104.62 | AK176: 251 | AL176: 2.09 | AM176: 76.76 | AN176: 308 | AO176: 2.18 | AP176: 101.31
C177: 남 | D177: 1730 | E177: 2.08 | G177: 128 | H177: 1.89 | J177: 56 | K177: 2.07 | M177: 111 | N177: 1.82 | P177: 154 | Q177: 2.22 | S177: 287 | T177: 2.17 | V177: 211 | W177: 2.3 | Y177: 167 | Z177: 2.06 | AB177: 132 | AC177: 1.66 | AE177: 152 | AF177: 2.33 | AH177: 68 | AI177: 2.14 | AK177: 109 | AL177: 1.94 | AN177: 155 | AO177: 2.27
C178: 여 | D178: 1694 | E178: 2.1 | G178: 94 | H178: 1.51 | J178: 46 | K178: 1.86 | M178: 108 | N178: 1.83 | P178: 169 | Q178: 2.34 | S178: 339 | T178: 2.53 | V178: 177 | W178: 2.15 | Y178: 167 | Z178: 2.17 | AB178: 130 | AC178: 1.71 | AE178: 104 | AF178: 1.83 | AH178: 65 | AI178: 2.54 | AK178: 142 | AL178: 2.22 | AN178: 153 | AO178: 2.09
B179: 56세 | C179: 계 | D179: 3326 | E179: 2.03 | F179: 106.07 | G179: 214 | H179: 1.65 | I179: 143.18 | J179: 108 | K179: 2.09 | L179: 151.16 | M179: 222 | N179: 1.85 | O179: 109.43 | P179: 334 | Q179: 2.36 | R179: 116.88 | S179: 641 | T179: 2.41 | U179: 106.77 | V179: 333 | W179: 1.91 | X179: 116.23 | Y179: 288 | Z179: 1.82 | AA179: 92 | AB179: 270 | AC179: 1.73 | AD179: 103.01 | AE179: 269 | AF179: 2.21 | AG179: 96.35 | AH179: 117 | AI179: 2.04 | AJ179: 138.78 | AK179: 248 | AL179: 2.07 | AM179: 65.33 | AN179: 282 | AO179: 1.99 | AP179: 101.43
C180: 남 | D180: 1712 | E180: 2.06 | G180: 126 | H180: 1.86 | J180: 65 | K180: 2.4 | M180: 116 | N180: 1.9 | P180: 180 | Q180: 2.6 | S180: 331 | T180: 2.51 | V180: 179 | W180: 1.95 | Y180: 138 | Z180: 1.7 | AB180: 137 | AC180: 1.72 | AE180: 132 | AF180: 2.03 | AH180: 68 | AI180: 2.14 | AK180: 98 | AL180: 1.75 | AN180: 142 | AO180: 2.08
C181: 여 | D181: 1614 | E181: 2 | G181: 88 | H181: 1.42 | J181: 43 | K181: 1.74 | M181: 106 | N181: 1.8 | P181: 154 | Q181: 2.13 | S181: 310 | T181: 2.31 | V181: 154 | W181: 1.87 | Y181: 150 | Z181: 1.95 | AB181: 133 | AC181: 1.75 | AE181: 137 | AF181: 2.41 | AH181: 49 | AI181: 1.92 | AK181: 150 | AL181: 2.35 | AN181: 140 | AO181: 1.91
B182: 57세 | C182: 계 | D182: 3704 | E182: 2.26 | F182: 100.98 | G182: 281 | H182: 2.16 | I182: 124.8 | J182: 108 | K182: 2.09 | L182: 125 | M182: 268 | N182: 2.24 | O182: 97.06 | P182: 341 | Q182: 2.41 | R182: 95.98 | S182: 653 | T182: 2.45 | U182: 85.51 | V182: 415 | W182: 2.38 | X182: 117.28 | Y182: 337 | Z182: 2.13 | AA182: 104.24 | AB182: 277 | AC182: 1.78 | AD182: 106.72 | AE182: 302 | AF182: 2.48 | AG182: 115.71 | AH182: 112 | AI182: 1.95 | AJ182: 154.55 | AK182: 277 | AL182: 2.31 | AM182: 69.94 | AN182: 333 | AO182: 2.35 | AP182: 94.74
C183: 남 | D183: 1861 | E183: 2.24 | G183: 156 | H183: 2.3 | J183: 60 | K183: 2.22 | M183: 132 | N183: 2.17 | P183: 167 | Q183: 2.41 | S183: 301 | T183: 2.28 | V183: 224 | W183: 2.44 | Y183: 172 | Z183: 2.12 | AB183: 143 | AC183: 1.79 | AE183: 162 | AF183: 2.49 | AH183: 68 | AI183: 2.14 | AK183: 114 | AL183: 2.03 | AN183: 162 | AO183: 2.37
C184: 여 | D184: 1843 | E184: 2.28 | G184: 125 | H184: 2.01 | J184: 48 | K184: 1.94 | M184: 136 | N184: 2.31 | P184: 174 | Q184: 2.41 | S184: 352 | T184: 2.62 | V184: 191 | W184: 2.32 | Y184: 165 | Z184: 2.14 | AB184: 134 | AC184: 1.76 | AE184: 140 | AF184: 2.46 | AH184: 44 | AI184: 1.72 | AK184: 163 | AL184: 2.55 | AN184: 171 | AO184: 2.34
B185: 58세 | C185: 계 | D185: 3443 | E185: 2.1 | F185: 102.05 | G185: 254 | H185: 1.96 | I185: 109.92 | J185: 101 | K185: 1.95 | L185: 119.57 | M185: 275 | N185: 2.29 | O185: 76.28 | P185: 318 | Q185: 2.25 | R185: 107.84 | S185: 586 | T185: 2.2 | U185: 107.8 | V185: 324 | W185: 1.86 | X185: 134.78 | Y185: 327 | Z185: 2.07 | AA185: 109.62 | AB185: 250 | AC185: 1.6 | AD185: 104.92 | AE185: 270 | AF185: 2.21 | AG185: 94.24 | AH185: 116 | AI185: 2.02 | AJ185: 100 | AK185: 272 | AL185: 2.27 | AM185: 87.59 | AN185: 350 | AO185: 2.47 | AP185: 86.17
C186: 남 | D186: 1739 | E186: 2.09 | G186: 133 | H186: 1.96 | J186: 55 | K186: 2.03 | M186: 119 | N186: 1.95 | P186: 165 | Q186: 2.38 | S186: 304 | T186: 2.3 | V186: 186 | W186: 2.03 | Y186: 171 | Z186: 2.11 | AB186: 128 | AC186: 1.61 | AE186: 131 | AF186: 2.01 | AH186: 58 | AI186: 1.82 | AK186: 127 | AL186: 2.27 | AN186: 162 | AO186: 2.37
C187: 여 | D187: 1704 | E187: 2.11 | G187: 121 | H187: 1.95 | J187: 46 | K187: 1.86 | M187: 156 | N187: 2.65 | P187: 153 | Q187: 2.12 | S187: 282 | T187: 2.1 | V187: 138 | W187: 1.67 | Y187: 156 | Z187: 2.03 | AB187: 122 | AC187: 1.6 | AE187: 139 | AF187: 2.45 | AH187: 58 | AI187: 2.27 | AK187: 145 | AL187: 2.27 | AN187: 188 | AO187: 2.57
B188: 59세 | C188: 계 | D188: 3167 | E188: 1.93 | F188: 102.75 | G188: 230 | H188: 1.77 | I188: 125.49 | J188: 100 | K188: 1.93 | L188: 96.08 | M188: 233 | N188: 1.94 | O188: 100.86 | P188: 289 | Q188: 2.04 | R188: 96.6 | S188: 538 | T188: 2.02 | U188: 110.98 | V188: 352 | W188: 2.02 | X188: 104.65 | Y188: 314 | Z188: 1.99 | AA188: 86.9 | AB188: 251 | AC188: 1.61 | AD188: 96.09 | AE188: 235 | AF188: 1.93 | AG188: 142.27 | AH188: 98 | AI188: 1.71 | AJ188: 122.73 | AK188: 236 | AL188: 1.97 | AM188: 95.04 | AN188: 291 | AO188: 2.06 | AP188: 80.75
C189: 남 | D189: 1605 | E189: 1.93 | G189: 128 | H189: 1.89 | J189: 49 | K189: 1.81 | M189: 117 | N189: 1.92 | P189: 142 | Q189: 2.05 | S189: 283 | T189: 2.14 | V189: 180 | W189: 1.96 | Y189: 146 | Z189: 1.8 | AB189: 123 | AC189: 1.54 | AE189: 138 | AF189: 2.12 | AH189: 54 | AI189: 1.7 | AK189: 115 | AL189: 2.05 | AN189: 130 | AO189: 1.9
C190: 여 | D190: 1562 | E190: 1.93 | G190: 102 | H190: 1.64 | J190: 51 | K190: 2.06 | M190: 116 | N190: 1.97 | P190: 147 | Q190: 2.03 | S190: 255 | T190: 1.9 | V190: 172 | W190: 2.09 | Y190: 168 | Z190: 2.18 | AB190: 128 | AC190: 1.68 | AE190: 97 | AF190: 1.71 | AH190: 44 | AI190: 1.72 | AK190: 121 | AL190: 1.89 | AN190: 161 | AO190: 2.2
B191: 60세 | C191: 계 | D191: 3002 | E191: 1.83 | F191: 104.22 | G191: 231 | H191: 1.78 | I191: 102.63 | J191: 93 | K191: 1.8 | L191: 138.46 | M191: 228 | N191: 1.9 | O191: 98.26 | P191: 298 | Q191: 2.11 | R191: 85.09 | S191: 501 | T191: 1.88 | U191: 115.95 | V191: 332 | W191: 1.91 | X191: 98.8 | Y191: 263 | Z191: 1.66 | AA191: 103.88 | AB191: 238 | AC191: 1.53 | AD191: 83.08 | AE191: 225 | AF191: 1.84 | AG191: 152.81 | AH191: 90 | AI191: 1.57 | AJ191: 190.32 | AK191: 235 | AL191: 1.96 | AM191: 88 | AN191: 268 | AO191: 1.89 | AP191: 94.2
C192: 남 | D192: 1532 | E192: 1.84 | G192: 117 | H192: 1.73 | J192: 54 | K192: 2 | M192: 113 | N192: 1.85 | P192: 137 | Q192: 1.98 | S192: 269 | T192: 2.04 | V192: 165 | W192: 1.8 | Y192: 134 | Z192: 1.65 | AB192: 108 | AC192: 1.35 | AE192: 136 | AF192: 2.09 | AH192: 59 | AI192: 1.86 | AK192: 110 | AL192: 1.96 | AN192: 130 | AO192: 1.9
C193: 여 | D193: 1470 | E193: 1.82 | G193: 114 | H193: 1.84 | J193: 39 | K193: 1.58 | M193: 115 | N193: 1.95 | P193: 161 | Q193: 2.23 | S193: 232 | T193: 1.73 | V193: 167 | W193: 2.02 | Y193: 129 | Z193: 1.68 | AB193: 130 | AC193: 1.71 | AE193: 89 | AF193: 1.57 | AH193: 31 | AI193: 1.21 | AK193: 125 | AL193: 1.95 | AN193: 138 | AO193: 1.88
B194: 61세 | C194: 계 | D194: 3159 | E194: 1.93 | F194: 101.6 | G194: 272 | H194: 2.09 | I194: 104.51 | J194: 102 | K194: 1.97 | L194: 121.74 | M194: 239 | N194: 1.99 | O194: 106.03 | P194: 250 | Q194: 1.77 | R194: 83.82 | S194: 482 | T194: 1.81 | U194: 104.24 | V194: 359 | W194: 2.06 | X194: 107.51 | Y194: 318 | Z194: 2.01 | AA194: 100 | AB194: 247 | AC194: 1.58 | AD194: 122.52 | AE194: 241 | AF194: 1.98 | AG194: 115.18 | AH194: 102 | AI194: 1.78 | AJ194: 108.16 | AK194: 254 | AL194: 2.12 | AM194: 85.4 | AN194: 293 | AO194: 2.07 | AP194: 84.28
C195: 남 | D195: 1592 | E195: 1.92 | G195: 139 | H195: 2.05 | J195: 56 | K195: 2.07 | M195: 123 | N195: 2.02 | P195: 114 | Q195: 1.65 | S195: 246 | T195: 1.86 | V195: 186 | W195: 2.03 | Y195: 159 | Z195: 1.96 | AB195: 136 | AC195: 1.71 | AE195: 129 | AF195: 1.98 | AH195: 53 | AI195: 1.67 | AK195: 117 | AL195: 2.09 | AN195: 134 | AO195: 1.96
C196: 여 | D196: 1567 | E196: 1.94 | G196: 133 | H196: 2.14 | J196: 46 | K196: 1.86 | M196: 116 | N196: 1.97 | P196: 136 | Q196: 1.88 | S196: 236 | T196: 1.76 | V196: 173 | W196: 2.1 | Y196: 159 | Z196: 2.07 | AB196: 111 | AC196: 1.46 | AE196: 112 | AF196: 1.97 | AH196: 49 | AI196: 1.92 | AK196: 137 | AL196: 2.14 | AN196: 159 | AO196: 2.17
B197: 62세 | C197: 계 | D197: 2687 | E197: 1.64 | F197: 101.12 | G197: 228 | H197: 1.76 | I197: 76.74 | J197: 79 | K197: 1.53 | L197: 119.44 | M197: 207 | N197: 1.73 | O197: 125 | P197: 225 | Q197: 1.59 | R197: 102.7 | S197: 414 | T197: 1.55 | U197: 105.97 | V197: 329 | W197: 1.89 | X197: 106.92 | Y197: 257 | Z197: 1.63 | AA197: 121.55 | AB197: 176 | AC197: 1.13 | AD197: 93.41 | AE197: 183 | AF197: 1.5 | AG197: 110.34 | AH197: 103 | AI197: 1.8 | AJ197: 114.58 | AK197: 194 | AL197: 1.62 | AM197: 100 | AN197: 292 | AO197: 2.06 | AP197: 72.78
C198: 남 | D198: 1351 | E198: 1.63 | G198: 99 | H198: 1.46 | J198: 43 | K198: 1.59 | M198: 115 | N198: 1.89 | P198: 114 | Q198: 1.65 | S198: 213 | T198: 1.61 | V198: 170 | W198: 1.86 | Y198: 141 | Z198: 1.74 | AB198: 85 | AC198: 1.07 | AE198: 96 | AF198: 1.47 | AH198: 55 | AI198: 1.73 | AK198: 97 | AL198: 1.73 | AN198: 123 | AO198: 1.8
C199: 여 | D199: 1336 | E199: 1.65 | G199: 129 | H199: 2.08 | J199: 36 | K199: 1.46 | M199: 92 | N199: 1.56 | P199: 111 | Q199: 1.54 | S199: 201 | T199: 1.5 | V199: 159 | W199: 1.93 | Y199: 116 | Z199: 1.51 | AB199: 91 | AC199: 1.19 | AE199: 87 | AF199: 1.53 | AH199: 48 | AI199: 1.88 | AK199: 97 | AL199: 1.52 | AN199: 169 | AO199: 2.31
B200: 63세 | C200: 계 | D200: 3110 | E200: 1.9 | F200: 98.6 | G200: 248 | H200: 1.91 | I200: 89.31 | J200: 96 | K200: 1.85 | L200: 65.52 | M200: 250 | N200: 2.09 | O200: 135.85 | P200: 313 | Q200: 2.21 | R200: 77.84 | S200: 459 | T200: 1.72 | U200: 91.25 | V200: 356 | W200: 2.04 | X200: 93.48 | Y200: 294 | Z200: 1.86 | AA200: 108.51 | AB200: 213 | AC200: 1.37 | AD200: 113 | AE200: 229 | AF200: 1.88 | AG200: 126.73 | AH200: 89 | AI200: 1.55 | AJ200: 93.48 | AK200: 238 | AL200: 1.98 | AM200: 95.08 | AN200: 325 | AO200: 2.3 | AP200: 101.86
C201: 남 | D201: 1544 | E201: 1.86 | G201: 117 | H201: 1.73 | J201: 38 | K201: 1.4 | M201: 144 | N201: 2.36 | P201: 137 | Q201: 1.98 | S201: 219 | T201: 1.66 | V201: 172 | W201: 1.88 | Y201: 153 | Z201: 1.89 | AB201: 113 | AC201: 1.42 | AE201: 128 | AF201: 1.97 | AH201: 43 | AI201: 1.35 | AK201: 116 | AL201: 2.07 | AN201: 164 | AO201: 2.4
C202: 여 | D202: 1566 | E202: 1.94 | G202: 131 | H202: 2.11 | J202: 58 | K202: 2.35 | M202: 106 | N202: 1.8 | P202: 176 | Q202: 2.44 | S202: 240 | T202: 1.79 | V202: 184 | W202: 2.23 | Y202: 141 | Z202: 1.83 | AB202: 100 | AC202: 1.31 | AE202: 101 | AF202: 1.78 | AH202: 46 | AI202: 1.8 | AK202: 122 | AL202: 1.91 | AN202: 161 | AO202: 2.2
... 141 more rows

Sheet 주민수 및 세대현황(대전광역시)
B2: 인구 및 세대현황
B3: 행정기관: | C3: 대전광역시
B4: 작성기준: | C4: 2026.07 현재 | H4: 출력일자 : 2026.08.01 | L4: (단위 : 명)
B5: 행정기관 | D5: 인 구 수 | G5: 구 성 비 | J5: 성비 | K5: 세대수 | L5: 세대당인구
D6: 계 | E6: 남 | F6: 여 | G6: 계 | H6: 남 | I6: 여
B7: 대전광역시 | D7: 1442190 | E7: 718202 | F7: 723988 | G7: 100 | H7: 49.8 | I7: 50.2 | J7: 99.2 | K7: 705303 | L7: 2.04
B8: 대덕구 | D8: 163823 | E8: 83086 | F8: 80737 | G8: 11.36 | H8: 5.76 | I8: 5.6 | J8: 102.91 | K8: 81157 | L8: 2.02
B9: 동구 | D9: 218050 | E9: 109787 | F9: 108263 | G9: 15.12 | H9: 7.61 | I9: 7.51 | J9: 101.41 | K9: 113832 | L9: 1.92
B10: 중구 | D10: 224034 | E10: 109402 | F10: 114632 | G10: 15.53 | H10: 7.59 | I10: 7.95 | J10: 95.44 | K10: 109903 | L10: 2.04
B11: 서구 | D11: 464428 | E11: 227468 | F11: 236960 | G11: 32.2 | H11: 15.77 | I11: 16.43 | J11: 95.99 | K11: 225210 | L11: 2.06
B12: 유성구 | D12: 371855 | E12: 188459 | F12: 183396 | G12: 25.78 | H12: 13.07 | I12: 12.72 | J12: 102.76 | K12: 175201 | L12: 2.12
